Workbook

Sheet 113年
A1: 各科執業技師人數統計(資料截止日期: 113年12月31日)
P2: 表22
A3: 執業 方式 | B3: 領有技師證書人數 | C3: 單獨設立或與其他技師組織聯合技師事務所之執業人數 | F3: 組織或受聘於工程技術顧問公司之執業人數 | I3: 受聘於前款以外依法令規定必需聘用領有執業執照之技師之營利事業或機構之執業人數 | L3: 前三項合計
A4: 科別 | C4: 男 | D4: 女 | E4: 小計 | F4: 男 | G4: 女 | H4: 小計 | I4: 男 | J4: 女 | K4: 小計 | L4: 男 | M4: 比例 | N4: 女 | O4: 比例 | P4: 小計
A5: 土木工程科 | B5: 12,823 | C5: 308 | D5: 11 | E5: =C5+D5 -> 319 | F5: 1,370 | G5: 77 | H5: =F5+G5 -> 1,447 | I5: 0 | J5: 0 | K5: =I5+J5 -> 0 | L5: =C5+F5 -> 1,678 | M5: =L5/P5 -> 95.02% | N5: =D5+G5 -> 88 | O5: =N5/P5 -> 4.98% | P5: =E5+H5+K5 -> 1,766
A6: 水利工程科 | B6: 1,743 | C6: 26 | D6: 2 | E6: =C6+D6 -> 28 | F6: 265 | G6: 20 | H6: =F6+G6 -> 285 | I6: 0 | J6: 0 | K6: =I6+J6 -> 0 | L6: =C6+F6 -> 291 | M6: =L6/P6 -> 92.97% | N6: =D6+G6 -> 22 | O6: 7.03% | P6: =E6+H6+K6 -> 313
A7: 結構工程科 | B7: 2,094 | C7: 245 | D7: 8 | E7: 253 | F7: 399 | G7: 19 | H7: 418 | I7: 0 | J7: 0 | K7: 0 | L7: 644 | M7: 95.98% | N7: 27 | O7: 4.02% | P7: =E7+H7+K7 -> 671
A8: 大地工程科 | B8: 1,084 | C8: 69 | D8: 0 | E8: 69 | F8: 280 | G8: 12 | H8: 292 | I8: 0 | J8: 0 | K8: 0 | L8: 349 | M8: 96.68% | N8: 12 | O8: 3.32% | P8: 361
A9: 測量科 | B9: 556 | C9: 6 | D9: 0 | E9: 6 | F9: 67 | G9: 7 | H9: 74 | I9: 98 | J9: 2 | K9: 100 | L9: 73 | M9: 40.56% | N9: 7 | O9: 3.89% | P9: 180
A10: 環境工程科 | B10: 2,180 | C10: 92 | D10: 10 | E10: 102 | F10: 285 | G10: 32 | H10: 317 | I10: 0 | J10: 0 | K10: 0 | L10: 377 | M10: 89.98% | N10: 42 | O10: 10.02% | P10: 419
A11: 都市計畫科 | B11: 1,164 | C11: 36 | D11: 15 | E11: 51 | F11: 144 | G11: 103 | H11: 247 | I11: 0 | J11: 0 | K11: 0 | L11: 180 | M11: 60.40% | N11: 118 | O11: 39.60% | P11: 298
A12: 機械工程科 | B12: 738 | C12: 23 | D12: 0 | E12: 23 | F12: 29 | G12: 1 | H12: 30 | I12: 0 | J12: 0 | K12: 0 | L12: 52 | M12: 98.11% | N12: 1 | O12: 1.89% | P12: 53
A13: 冷凍空調工程科 | B13: 941 | C13: 180 | D13: 0 | E13: 180 | F13: 140 | G13: 0 | H13: 140 | I13: 0 | J13: 0 | K13: 0 | L13: 320 | M13: 100.00% | N13: 0 | O13: 0.00% | P13: 320
A14: 造船工程科 | B14: 46 | C14: 12 | D14: 1 | E14: 13 | F14: 0 | G14: 0 | H14: 0 | I14: 0 | J14: 0 | K14: 0 | L14: 12 | M14: 92.31% | N14: 1 | O14: 7.69% | P14: 13
A15: 電機工程科 | B15: 2,566 | C15: 374 | D15: 2 | E15: 376 | F15: 178 | G15: 1 | H15: 179 | I15: 0 | J15: 0 | K15: 0 | L15: 552 | M15: 99.46% | N15: 3 | O15: 0.54% | P15: 555
A16: 電子工程科 | B16: 235 | C16: 2 | D16: 0 | E16: 2 | F16: 5 | G16: 0 | H16: 5 | I16: 0 | J16: 0 | K16: 0 | L16: 7 | M16: 100.00% | N16: 0 | O16: 0.00% | P16: 7
A17: 資訊科 | B17: 239 | C17: 4 | D17: 0 | E17: 4 | F17: 0 | G17: 0 | H17: 0 | I17: 0 | J17: 0 | K17: 0 | L17: 4 | M17: 100.00% | N17: 0 | O17: 0.00% | P17: 4
A18: 航空工程科 | B18: 156 | C18: 0 | D18: 0 | E18: 0 | F18: 0 | G18: 0 | H18: 0 | I18: 0 | J18: 0 | K18: 0 | L18: 0 | M18: 0.00% | N18: 0 | O18: 0.00% | P18: 0
A19: 化學工程科 | B19: 187 | C19: 1 | D19: 0 | E19: 1 | F19: 5 | G19: 0 | H19: 5 | I19: 0 | J19: 0 | K19: 0 | L19: 6 | M19: 100.00% | N19: 0 | O19: 0.00% | P19: 6
A20: 工業工程科 | B20: 100 | C20: 0 | D20: 0 | E20: 0 | F20: 0 | G20: 0 | H20: 0 | I20: 0 | J20: 0 | K20: 0 | L20: 0 | M20: 0.00% | N20: 0 | O20: 0.00% | P20: 0
A21: 工業安全科 | B21: 635 | C21: 56 | D21: 6 | E21: 62 | F21: 4 | G21: 0 | H21: 4 | I21: 0 | J21: 0 | K21: 0 | L21: 60 | M21: 90.91% | N21: 6 | O21: 9.09% | P21: 66
A22: 職業衛生科 | B22: 547 | C22: 72 | D22: 15 | E22: 87 | F22: 0 | G22: 0 | H22: 0 | I22: 0 | J22: 0 | K22: 0 | L22: 72 | M22: 82.76% | N22: 15 | O22: 17.24% | P22: 87
A23: 紡織工程科 | B23: 65 | C23: 0 | D23: 0 | E23: 0 | F23: 0 | G23: 0 | H23: 0 | I23: 0 | J23: 0 | K23: 0 | L23: 0 | M23: 0.00% | N23: 0 | O23: 0.00% | P23: 0
A24: 食品科 | B24: 2,686 | C24: 9 | D24: 6 | E24: 15 | F24: 0 | G24: 0 | H24: 0 | I24: 0 | J24: 0 | K24: 0 | L24: 9 | M24: 60.00% | N24: 6 | O24: 40.00% | P24: 15
A25: 冶金工程科 | B25: 35 | C25: 1 | D25: 0 | E25: 1 | F25: 0 | G25: 0 | H25: 0 | I25: 0 | J25: 0 | K25: 0 | L25: 1 | M25: 100.00% | N25: 0 | O25: 0.00% | P25: 1
A26: 農藝科 | B26: 121 | C26: 0 | D26: 0 | E26: 0 | F26: 0 | G26: 0 | H26: 0 | I26: 0 | J26: 0 | K26: 0 | L26: 0 | M26: 0.00% | N26: 0 | O26: 0.00% | P26: 0
A27: 園藝科 | B27: 467 | C27: 5 | D27: 1 | E27: 6 | F27: 0 | G27: 0 | H27: 0 | I27: 0 | J27: 0 | K27: 0 | L27: 5 | M27: 83.33% | N27: 1 | O27: 16.67% | P27: 6
A28: 林業科 | B28: 526 | C28: 17 | D28: 1 | E28: 18 | F28: 0 | G28: 0 | H28: 0 | I28: 0 | J28: 0 | K28: 0 | L28: 17 | M28: 94.44% | N28: 1 | O28: 5.56% | P28: 18
A29: 畜牧科 | B29: 191 | C29: 0 | D29: 0 | E29: 0 | F29: 0 | G29: 0 | H29: 0 | I29: 0 | J29: 0 | K29: 0 | L29: 0 | M29: 0.00% | N29: 0 | O29: 0.00% | P29: 0
A30: 漁撈科 | B30: 84 | C30: 0 | D30: 0 | E30: 0 | F30: 0 | G30: 0 | H30: 0 | I30: 0 | J30: 0 | K30: 0 | L30: 0 | M30: 0.00% | N30: 0 | O30: 0.00% | P30: 0
A31: 水產養殖科 | B31: 357 | C31: 9 | D31: 0 | E31: 9 | F31: 0 | G31: 0 | H31: 0 | I31: 0 | J31: 0 | K31: 0 | L31: 9 | M31: 100.00% | N31: 0 | O31: 0.00% | P31: 9
A32: 水土保持科 | B32: 1,052 | C32: 45 | D32: 5 | E32: 50 | F32: 218 | G32: 25 | H32: 243 | I32: 0 | J32: 0 | K32: 0 | L32: 263 | M32: 89.76% | N32: 30 | O32: 10.24% | P32: 293
A33: 採礦工程科 | B33: 55 | C33: 5 | D33: 0 | E33: 5 | F33: 2 | G33: 0 | H33: 2 | I33: 0 | J33: 0 | K33: 0 | L33: 7 | M33: 100.00% | N33: 0 | O33: 0.00% | P33: 7
A34: 應用地質科 | B34: 260 | C34: 24 | D34: 0 | E34: 24 | F34: 86 | G34: 2 | H34: 88 | I34: 0 | J34: 0 | K34: 0 | L34: 110 | M34: 98.21% | N34: 2 | O34: 1.79% | P34: 112
A35: 礦業安全科 | B35: 32 | C35: 1 | D35: 0 | E35: 1 | F35: 0 | G35: 0 | H35: 0 | I35: 0 | J35: 0 | K35: 0 | L35: 1 | M35: 100.00% | N35: 0 | O35: 0.00% | P35: 1
A36: 交通工程科 | B36: 416 | C36: 11 | D36: 3 | E36: 14 | F36: 80 | G36: 26 | H36: 106 | I36: 0 | J36: 0 | K36: 0 | L36: 91 | M36: 75.83% | N36: 29 | O36: 24.17% | P36: 120
A37: 資料來源：技術處
A38: 備註： 1.性別資料使用：因傳統思維導致女性背負家庭義務與責任較重、認為女性不適合工程領域、不友善工作環境及刻版印象等原因，造成女性技師所占比例極為少數。 2.應用深化：鼓勵各技師公會或各工程技術顧問商業同業公會等團體舉辦相關活動時，增加性別平權課程，期能藉由「加強宣導性別平等」之觀念，營造尊重女性之友善工作環境，增加女性進入工程領域。 3.未進行國際性別統計比較原因說明：查各國對於技師之資格取得、業務分科、內容規定及限制不盡相同，缺乏共通性標準，且技師個人相關資訊取得不易，變動性亦大，欲進行國際上執業技師之性別比較實有困難。 4.執業技師有同時登記多科別技師證書之情形，經統計截至113年底有效執業技師人數為5,188人， 其中設立技師事務所之執業技師人數為1,471人(女性佔78人)， 組織或受聘於顧問公司之執業技師人數為3,612人(女性佔342人)， 受聘於前2項以外依法令規定必需領有執照之執業技師人數為105人(女性佔2人)。

Sheet 112年
A1: 各科執業技師人數統計(資料截止日期: 112年12月31日)
P2: 表22
A3: 執業 方式 | B3: 領有技師證書人數 | C3: 單獨設立或與其他技師組織聯合技師事務所之執業人數 | F3: 組織或受聘於工程技術顧問公司之執業人數 | I3: 受聘於前款以外依法令規定必需聘用領有執業執照之技師之營利事業或機構之執業人數 | L3: 前三項合計
A4: 科別 | C4: 男 | D4: 女 | E4: 小計 | F4: 男 | G4: 女 | H4: 小計 | I4: 男 | J4: 女 | K4: 小計 | L4: 男 | M4: 比例 | N4: 女 | O4: 比例 | P4: 小計
A5: 土木工程科 | B5: 12,363 | C5: 310 | D5: 13 | E5: 323 | F5: 1,323 | G5: 64 | H5: 1,387 | I5: 0 | J5: 0 | K5: 0 | L5: =C5+F5 -> 1,633 | M5: =L5/P5 -> 95.50% | N5: =D5+G5 -> 77 | O5: =N5/P5 -> 4.50% | P5: 1,710
A6: 水利工程科 | B6: 1,679 | C6: 23 | D6: 1 | E6: 24 | F6: 273 | G6: 19 | H6: 292 | I6: 0 | J6: 0 | K6: 0 | L6: =C6+F6 -> 296 | M6: =L6/P6 -> 93.67% | N6: =D6+G6 -> 20 | O6: =N6/P6 -> 6.33% | P6: 316
A7: 結構工程科 | B7: 2,019 | C7: 251 | D7: 6 | E7: 257 | F7: 394 | G7: 21 | H7: 415 | I7: 0 | J7: 0 | K7: 0 | L7: 645 | M7: 95.98% | N7: 27 | O7: 4.02% | P7: 672
A8: 大地工程科 | B8: 1,047 | C8: 66 | D8: 0 | E8: 66 | F8: 287 | G8: 12 | H8: 299 | I8: 0 | J8: 0 | K8: 0 | L8: 353 | M8: 96.71% | N8: 12 | O8: 3.29% | P8: 365
A9: 測量科 | B9: 538 | C9: 5 | D9: 0 | E9: 5 | F9: 66 | G9: 7 | H9: 73 | I9: 105 | J9: 1 | K9: 106 | L9: 71 | M9: 38.59% | N9: 7 | O9: 3.80% | P9: 184
A10: 環境工程科 | B10: 2,142 | C10: 96 | D10: 7 | E10: 103 | F10: 296 | G10: 39 | H10: 335 | I10: 0 | J10: 0 | K10: 0 | L10: 392 | M10: 89.50% | N10: 46 | O10: 10.50% | P10: 438
A11: 都市計畫科 | B11: 1,108 | C11: 35 | D11: 11 | E11: 46 | F11: 150 | G11: 98 | H11: 248 | I11: 0 | J11: 0 | K11: 0 | L11: 185 | M11: 62.93% | N11: 109 | O11: 37.07% | P11: 294
A12: 機械工程科 | B12: 722 | C12: 24 | D12: 0 | E12: 24 | F12: 29 | G12: 1 | H12: 30 | I12: 0 | J12: 0 | K12: 0 | L12: 53 | M12: 98.15% | N12: 1 | O12: 1.85% | P12: 54
A13: 冷凍空調工程科 | B13: 902 | C13: 175 | D13: 0 | E13: 175 | F13: 130 | G13: 0 | H13: 130 | I13: 0 | J13: 0 | K13: 0 | L13: 305 | M13: 100.00% | N13: 0 | O13: 0.00% | P13: 305
A14: 造船工程科 | B14: 45 | C14: 12 | D14: 1 | E14: 13 | F14: 0 | G14: 0 | H14: 0 | I14: 0 | J14: 0 | K14: 0 | L14: 12 | M14: 92.31% | N14: 1 | O14: 7.69% | P14: 13
A15: 電機工程科 | B15: 2,495 | C15: 370 | D15: 3 | E15: 373 | F15: 179 | G15: 0 | H15: 179 | I15: 0 | J15: 0 | K15: 0 | L15: 549 | M15: 99.46% | N15: 3 | O15: 0.54% | P15: 552
A16: 電子工程科 | B16: 228 | C16: 2 | D16: 0 | E16: 2 | F16: 5 | G16: 0 | H16: 5 | I16: 0 | J16: 0 | K16: 0 | L16: 7 | M16: 100.00% | N16: 0 | O16: 0.00% | P16: 7
A17: 資訊科 | B17: 233 | C17: 0 | D17: 0 | E17: 0 | F17: 0 | G17: 0 | H17: 0 | I17: 0 | J17: 0 | K17: 0 | L17: 0 | M17: 0.00% | N17: 0 | O17: 0.00% | P17: 0
A18: 航空工程科 | B18: 156 | C18: 0 | D18: 0 | E18: 0 | F18: 0 | G18: 0 | H18: 0 | I18: 0 | J18: 0 | K18: 0 | L18: 0 | M18: 0.00% | N18: 0 | O18: 0.00% | P18: 0
A19: 化學工程科 | B19: 187 | C19: 1 | D19: 0 | E19: 1 | F19: 5 | G19: 0 | H19: 5 | I19: 0 | J19: 0 | K19: 0 | L19: 6 | M19: 100.00% | N19: 0 | O19: 0.00% | P19: 6
A20: 工業工程科 | B20: 96 | C20: 0 | D20: 0 | E20: 0 | F20: 0 | G20: 0 | H20: 0 | I20: 0 | J20: 0 | K20: 0 | L20: 0 | M20: 0.00% | N20: 0 | O20: 0.00% | P20: 0
A21: 工業安全科 | B21: 598 | C21: 56 | D21: 5 | E21: 61 | F21: 2 | G21: 0 | H21: 2 | I21: 0 | J21: 0 | K21: 0 | L21: 58 | M21: 92.06% | N21: 5 | O21: 7.94% | P21: 63
A22: 職業衛生科 | B22: 511 | C22: 74 | D22: 10 | E22: 84 | F22: 0 | G22: 0 | H22: 0 | I22: 0 | J22: 0 | K22: 0 | L22: 74 | M22: 88.10% | N22: 10 | O22: 11.90% | P22: 84
A23: 紡織工程科 | B23: 64 | C23: 0 | D23: 0 | E23: 0 | F23: 0 | G23: 0 | H23: 0 | I23: 0 | J23: 0 | K23: 0 | L23: 0 | M23: 0.00% | N23: 0 | O23: 0.00% | P23: 0
A24: 食品科 | B24: 2,601 | C24: 0 | D24: 0 | E24: 0 | F24: 0 | G24: 0 | H24: 0 | I24: 0 | J24: 0 | K24: 0 | L24: 0 | M24: 0.00% | N24: 0 | O24: 0.00% | P24: 0
A25: 冶金工程科 | B25: 34 | C25: 1 | D25: 0 | E25: 1 | F25: 0 | G25: 0 | H25: 0 | I25: 0 | J25: 0 | K25: 0 | L25: 1 | M25: 100.00% | N25: 0 | O25: 0.00% | P25: 1
A26: 農藝科 | B26: 117 | C26: 0 | D26: 0 | E26: 0 | F26: 0 | G26: 0 | H26: 0 | I26: 0 | J26: 0 | K26: 0 | L26: 0 | M26: 0.00% | N26: 0 | O26: 0.00% | P26: 0
A27: 園藝科 | B27: 449 | C27: 6 | D27: 1 | E27: 7 | F27: 0 | G27: 0 | H27: 0 | I27: 0 | J27: 0 | K27: 0 | L27: 6 | M27: 85.71% | N27: 1 | O27: 14.29% | P27: 7
A28: 林業科 | B28: 511 | C28: 16 | D28: 0 | E28: 16 | F28: 0 | G28: 0 | H28: 0 | I28: 0 | J28: 0 | K28: 0 | L28: 16 | M28: 100.00% | N28: 0 | O28: 0.00% | P28: 16
A29: 畜牧科 | B29: 183 | C29: 0 | D29: 0 | E29: 0 | F29: 0 | G29: 0 | H29: 0 | I29: 0 | J29: 0 | K29: 0 | L29: 0 | M29: 0.00% | N29: 0 | O29: 0.00% | P29: 0
A30: 漁撈科 | B30: 81 | C30: 0 | D30: 0 | E30: 0 | F30: 0 | G30: 0 | H30: 0 | I30: 0 | J30: 0 | K30: 0 | L30: 0 | M30: 0.00% | N30: 0 | O30: 0.00% | P30: 0
A31: 水產養殖科 | B31: 350 | C31: 6 | D31: 0 | E31: 6 | F31: 0 | G31: 0 | H31: 0 | I31: 0 | J31: 0 | K31: 0 | L31: 6 | M31: 100.00% | N31: 0 | O31: 0.00% | P31: 6
A32: 水土保持科 | B32: 988 | C32: 42 | D32: 4 | E32: 46 | F32: 221 | G32: 22 | H32: 243 | I32: 0 | J32: 0 | K32: 0 | L32: 263 | M32: 91.00% | N32: 26 | O32: 9.00% | P32: 289
A33: 採礦工程科 | B33: 54 | C33: 5 | D33: 0 | E33: 5 | F33: 2 | G33: 0 | H33: 2 | I33: 0 | J33: 0 | K33: 0 | L33: 7 | M33: 100.00% | N33: 0 | O33: 0.00% | P33: 7
A34: 應用地質科 | B34: 252 | C34: 21 | D34: 0 | E34: 21 | F34: 87 | G34: 3 | H34: 90 | I34: 0 | J34: 0 | K34: 0 | L34: 108 | M34: 97.30% | N34: 3 | O34: 2.70% | P34: 111
A35: 礦業安全科 | B35: 31 | C35: 1 | D35: 0 | E35: 1 | F35: 0 | G35: 0 | H35: 0 | I35: 0 | J35: 0 | K35: 0 | L35: 1 | M35: 100.00% | N35: 0 | O35: 0.00% | P35: 1
A36: 交通工程科 | B36: 393 | C36: 10 | D36: 4 | E36: 14 | F36: 77 | G36: 22 | H36: 99 | I36: 0 | J36: 0 | K36: 0 | L36: 87 | M36: 76.99% | N36: 26 | O36: 23.01% | P36: 113
A37: 資料來源：技術處
A38: 備註： 1.性別資料使用：因傳統思維導致女性背負家庭義務與責任較重、認為女性不適合工程領域、不友善工作環境及刻版印象等原因，造成女性技師所占比例極為少數。 2.應用深化：鼓勵各技師公會或各工程技術顧問商業同業公會等團體舉辦相關活動時，增加性別平權課程，期能藉由「加強宣導性別平等」之觀念，營造尊重女性之友善工作環境，增加女性進入工程領域。 3.未進行國際性別統計比較原因說明：查各國對於技師之資格取得、業務分科、內容規定及限制不盡相同，缺乏共通性標準，且技師個人相關資訊取得不易，變動性亦大，欲進行國際上執業技師之性別比較實有困難。 4.執業技師有同時登記多科別技師證書之情形，經統計截至112年底有效執業技師人數為4,771人， 其中設立技師事務所之執業技師人數為1,363人(女性佔59人)， 組織或受聘於顧問公司之執業技師人數為3,308人(女性佔293人)， 受聘於前2項以外依法令規定必需領有執照之執業技師人數為100人(女性佔0人)。

Sheet 111年
A1: 各科執業技師人數統計(資料截止日期: 111年12月31日)
P2: 表22
A3: 執業 方式 | B3: 領有技師證書人數 | C3: 單獨設立或與其他技師組織聯合技師事務所之執業人數 | F3: 組織或受聘於工程技術顧問公司之執業人數 | I3: 受聘於前款以外依法令規定必需聘用領有執業執照之技師之營利事業或機構之執業人數 | L3: 前三項合計
A4: 科別 | C4: 男 | D4: 女 | E4: 小計 | F4: 男 | G4: 女 | H4: 小計 | I4: 男 | J4: 女 | K4: 小計 | L4: 男 | M4: 比例 | N4: 女 | O4: 比例 | P4: 小計
A5: 土木工程科 | B5: 11,984 | C5: 310 | D5: 10 | E5: =C5+D5 -> 320 | F5: 1,219 | G5: 55 | H5: =F5+G5 -> 1,274 | I5: 0 | J5: 0 | K5: =I5+J5 -> 0 | L5: =C5+F5+I5 -> 1,529 | M5: =L5/P5 -> 95.92% | N5: =D5+G5 -> 65 | O5: =N5/P5 -> 4.08% | P5: =L5+N5 -> 1,594
A6: 水利工程科 | B6: 1,614 | C6: 22 | D6: 1 | E6: =C6+D6 -> 23 | F6: 255 | G6: 18 | H6: =F6+G6 -> 273 | I6: 0 | J6: 0 | K6: =I6+J6 -> 0 | L6: =C6+F6+I6 -> 277 | M6: =L6/P6 -> 93.58% | N6: =D6+G6 -> 19 | O6: =N6/P6 -> 6.42% | P6: =L6+N6 -> 296
A7: 結構工程科 | B7: 1,968 | C7: 263 | D7: 7 | E7: 270 | F7: 393 | G7: 19 | H7: 412 | I7: 0 | J7: 0 | K7: 0 | L7: 656 | M7: 96.19% | N7: 26 | O7: 3.81% | P7: 682
A8: 大地工程科 | B8: 1,043 | C8: 66 | D8: 0 | E8: 66 | F8: 297 | G8: 12 | H8: 309 | I8: 0 | J8: 0 | K8: 0 | L8: 363 | M8: 96.80% | N8: 12 | O8: 3.20% | P8: 375
A9: 測量科 | B9: 520 | C9: 4 | D9: 0 | E9: 4 | F9: 73 | G9: 7 | H9: 80 | I9: 92 | J9: 0 | K9: 92 | L9: 169 | M9: 96.02% | N9: 7 | O9: 3.98% | P9: 176
A10: 環境工程科 | B10: 2,119 | C10: 100 | D10: 10 | E10: 110 | F10: 289 | G10: 41 | H10: 330 | I10: 0 | J10: 0 | K10: 0 | L10: 389 | M10: 88.41% | N10: 51 | O10: 11.59% | P10: 440
A11: 都市計畫科 | B11: 1,076 | C11: 40 | D11: 6 | E11: 46 | F11: 137 | G11: 93 | H11: 230 | I11: 0 | J11: 0 | K11: 0 | L11: 177 | M11: 64.13% | N11: 99 | O11: 35.87% | P11: 276
A12: 機械工程科 | B12: 717 | C12: 25 | D12: 0 | E12: 25 | F12: 28 | G12: 1 | H12: 29 | I12: 0 | J12: 0 | K12: 0 | L12: 53 | M12: 98.15% | N12: 1 | O12: 1.85% | P12: 54
A13: 冷凍空調工程科 | B13: 887 | C13: 168 | D13: 0 | E13: 168 | F13: 137 | G13: 0 | H13: 137 | I13: 0 | J13: 0 | K13: 0 | L13: 305 | M13: 100.00% | N13: 0 | O13: 0.00% | P13: 305
A14: 造船工程科 | B14: 45 | C14: 11 | D14: 1 | E14: 12 | F14: 0 | G14: 0 | H14: 0 | I14: 0 | J14: 0 | K14: 0 | L14: 11 | M14: 91.67% | N14: 1 | O14: 8.33% | P14: 12
A15: 電機工程科 | B15: 2,460 | C15: 358 | D15: 3 | E15: 361 | F15: 169 | G15: 0 | H15: 169 | I15: 0 | J15: 0 | K15: 0 | L15: 527 | M15: 99.43% | N15: 3 | O15: 0.57% | P15: 530
A16: 電子工程科 | B16: 229 | C16: 2 | D16: 0 | E16: 2 | F16: 5 | G16: 0 | H16: 5 | I16: 0 | J16: 0 | K16: 0 | L16: 7 | M16: 100.00% | N16: 0 | O16: 0.00% | P16: 7
A17: 資訊科 | B17: 233 | C17: 0 | D17: 0 | E17: 0 | F17: 0 | G17: 0 | H17: 0 | I17: 0 | J17: 0 | K17: 0 | L17: 0 | M17: 0.00% | N17: 0 | O17: 0.00% | P17: 0
A18: 航空工程科 | B18: 157 | C18: 0 | D18: 0 | E18: 0 | F18: 0 | G18: 0 | H18: 0 | I18: 0 | J18: 0 | K18: 0 | L18: 0 | M18: 0.00% | N18: 0 | O18: 0.00% | P18: 0
A19: 化學工程科 | B19: 186 | C19: 1 | D19: 0 | E19: 1 | F19: 6 | G19: 0 | H19: 6 | I19: 0 | J19: 0 | K19: 0 | L19: 7 | M19: 100.00% | N19: 0 | O19: 0.00% | P19: 7
A20: 工業工程科 | B20: 95 | C20: 0 | D20: 0 | E20: 0 | F20: 0 | G20: 0 | H20: 0 | I20: 0 | J20: 0 | K20: 0 | L20: 0 | M20: 0.00% | N20: 0 | O20: 0.00% | P20: 0
A21: 工業安全科 | B21: 578 | C21: 52 | D21: 4 | E21: 56 | F21: 2 | G21: 0 | H21: 2 | I21: 0 | J21: 0 | K21: 0 | L21: 54 | M21: 93.10% | N21: 4 | O21: 6.90% | P21: 58
A22: 紡織工程科 | B22: 65 | C22: 0 | D22: 0 | E22: 0 | F22: 0 | G22: 0 | H22: 0 | I22: 0 | J22: 0 | K22: 0 | L22: 0 | M22: 0.00% | N22: 0 | O22: 0.00% | P22: 0
A23: 食品科 | B23: 2,511 | C23: 0 | D23: 0 | E23: 0 | F23: 0 | G23: 0 | H23: 0 | I23: 0 | J23: 0 | K23: 0 | L23: 0 | M23: 0.00% | N23: 0 | O23: 0.00% | P23: 0
A24: 冶金工程科 | B24: 35 | C24: 1 | D24: 0 | E24: 1 | F24: 0 | G24: 0 | H24: 0 | I24: 0 | J24: 0 | K24: 0 | L24: 1 | M24: 100.00% | N24: 0 | O24: 0.00% | P24: 1
A25: 農藝科 | B25: 114 | C25: 0 | D25: 0 | E25: 0 | F25: 0 | G25: 0 | H25: 0 | I25: 0 | J25: 0 | K25: 0 | L25: 0 | M25: 0.00% | N25: 0 | O25: 0.00% | P25: 0
A26: 園藝科 | B26: 441 | C26: 6 | D26: 1 | E26: 7 | F26: 0 | G26: 0 | H26: 0 | I26: 0 | J26: 0 | K26: 0 | L26: 6 | M26: 85.71% | N26: 1 | O26: 14.29% | P26: 7
A27: 林業科 | B27: 492 | C27: 13 | D27: 0 | E27: 13 | F27: 0 | G27: 0 | H27: 0 | I27: 0 | J27: 0 | K27: 0 | L27: 13 | M27: 100.00% | N27: 0 | O27: 0.00% | P27: 13
A28: 畜牧科 | B28: 182 | C28: 0 | D28: 0 | E28: 0 | F28: 0 | G28: 0 | H28: 0 | I28: 0 | J28: 0 | K28: 0 | L28: 0 | M28: 0.00% | N28: =D28+G28 -> 0 | O28: 0.00% | P28: 0
A29: 漁撈科 | B29: 81 | C29: 0 | D29: 0 | E29: 0 | F29: 0 | G29: 0 | H29: 0 | I29: 0 | J29: 0 | K29: 0 | L29: 0 | M29: 0.00% | N29: 0 | O29: 0.00% | P29: 0
A30: 水產養殖科 | B30: 341 | C30: 0 | D30: 0 | E30: 0 | F30: 0 | G30: 0 | H30: 0 | I30: 0 | J30: 0 | K30: 0 | L30: 0 | M30: 0.00% | N30: 0 | O30: 0.00% | P30: 0
A31: 水土保持科 | B31: 950 | C31: 45 | D31: 6 | E31: 51 | F31: 214 | G31: 23 | H31: 237 | I31: 0 | J31: 0 | K31: 0 | L31: 259 | M31: 89.93% | N31: 29 | O31: 10.07% | P31: 288
A32: 採礦工程科 | B32: 51 | C32: 5 | D32: 0 | E32: 5 | F32: 2 | G32: 0 | H32: 2 | I32: 0 | J32: 0 | K32: 0 | L32: 7 | M32: 100.00% | N32: 0 | O32: 0.00% | P32: 7
A33: 應用地質科 | B33: 247 | C33: 21 | D33: 0 | E33: 21 | F33: 89 | G33: 4 | H33: 93 | I33: 0 | J33: 0 | K33: 0 | L33: 110 | M33: 96.49% | N33: 4 | O33: 3.51% | P33: 114
A34: 礦業安全科 | B34: 32 | C34: 1 | D34: 0 | E34: 1 | F34: 0 | G34: 0 | H34: 0 | I34: 0 | J34: 0 | K34: 0 | L34: 1 | M34: 100.00% | N34: 0 | O34: 0.00% | P34: 1
A35: 交通工程科 | B35: 371 | C35: 12 | D35: 4 | E35: 16 | F35: 70 | G35: 21 | H35: 91 | I35: 0 | J35: 0 | K35: 0 | L35: 82 | M35: 76.64% | N35: 25 | O35: 23.36% | P35: 107
A36: 職業衛生科 | B36: 246 | C36: 70 | D36: 9 | E36: 79 | F36: 0 | G36: 0 | H36: 0 | I36: 0 | J36: 0 | K36: 0 | L36: 70 | M36: 88.61% | N36: 9 | O36: 11.39% | P36: 79
A37: 資料來源：技術處
A38: 備註： 1.性別資料使用：因傳統思維導致女性背負家庭義務與責任較重、認為女性不適合工程領域、不友善工作環境及刻版印象等原因，造成女性技師所占比例極為少數。 2.應用深化：鼓勵各技師公會或各工程技術顧問商業同業公會等團體舉辦相關活動時，增加性別平權課程，期能藉由「加強宣導性別平等」之觀念，營造尊重女性之友善工作環境，增加女性進入工程領域。 3.未進行國際性別統計比較原因說明：查各國對於技師之資格取得、業務分科、內容規定及限制不盡相同，缺乏共通性標準，且技師個人相關資訊取得不易，變動性亦大，欲進行國際上執業技師之性別比較實有困難。 4.執業技師有同時登記多科別技師證書之情形，經統計截至111年底有效執業技師人數為5,429人， 其中設立技師事務所之執業技師人數為1,658人(女性佔62人)， 組織或受聘於顧問公司之執業技師人數為3,679人(女性佔294人)， 受聘於前2項以外依法令規定必需領有執照之執業技師人數為92人(女性佔0人)。

Sheet 110年
A1: 各科執業技師人數統計(資料截止日期: 110年12月31日)
P2: 表22
A3: 執業 方式 | B3: 領有技師證書人數 | C3: 單獨設立或與其他技師組織聯合技師事務所之執業人數 | F3: 組織或受聘於工程技術顧問公司之執業人數 | I3: 受聘於前款以外依法令規定必需聘用領有執業執照之技師之營利事業或機構之執業人數 | L3: 前三項合計
A4: 科別 | C4: 男 | D4: 女 | E4: 小計 | F4: 男 | G4: 女 | H4: 小計 | I4: 男 | J4: 女 | K4: 小計 | L4: 男 | M4: 比例 | N4: 女 | O4: 比例 | P4: 小計
A5: 土木工程科 | B5: 11,324 | C5: 300 | D5: 9 | E5: =SUM(C5:D5) -> 309 | F5: 1,153 | G5: 45 | H5: =SUM(F5:G5) -> 1,198 | I5: 0 | J5: 0 | K5: =SUM(I5:J5) -> 0 | L5: =SUM(C5,F5,I5) -> 1,453 | M5: =L5/P5 -> 96.42% | N5: =SUM(D5,G5,J5) -> 54 | O5: =N5/P5 -> 3.58% | P5: =SUM(L5,N5) -> 1,507
A6: 水利工程科 | B6: 1,531 | C6: 23 | D6: 0 | E6: =SUM(C6:D6) -> 23 | F6: 242 | G6: 17 | H6: =SUM(F6:G6) -> 259 | I6: 0 | J6: 0 | K6: =SUM(I6:J6) -> 0 | L6: =SUM(C6,F6,I6) -> 265 | M6: =L6/P6 -> 93.97% | N6: =SUM(D6,G6,J6) -> 17 | O6: =N6/P6 -> 6.03% | P6: =SUM(L6,N6) -> 282
A7: 結構工程科 | B7: 1,911 | C7: 257 | D7: 9 | E7: 266 | F7: 386 | G7: 17 | H7: 403 | I7: 0 | J7: 0 | K7: 0 | L7: 643 | M7: 96.11% | N7: 26 | O7: 3.89% | P7: 669
A8: 大地工程科 | B8: 1,024 | C8: 64 | D8: 0 | E8: 64 | F8: 295 | G8: 9 | H8: 304 | I8: 0 | J8: 0 | K8: 0 | L8: 359 | M8: 97.55% | N8: 9 | O8: 2.45% | P8: 368
A9: 測量科 | B9: 488 | C9: 4 | D9: 0 | E9: 4 | F9: 72 | G9: 7 | H9: 79 | I9: 87 | J9: 1 | K9: 88 | L9: 163 | M9: 95.32% | N9: 8 | O9: 4.68% | P9: 171
A10: 環境工程科 | B10: 2,070 | C10: 99 | D10: 11 | E10: 110 | F10: 291 | G10: 37 | H10: 328 | I10: 0 | J10: 0 | K10: 0 | L10: 390 | M10: 89.04% | N10: 48 | O10: 10.96% | P10: 438
A11: 都市計畫科 | B11: 1,019 | C11: 37 | D11: 6 | E11: 43 | F11: 138 | G11: 90 | H11: 228 | I11: 0 | J11: 0 | K11: 0 | L11: 175 | M11: 64.58% | N11: 96 | O11: 35.42% | P11: 271
A12: 機械工程科 | B12: 702 | C12: 26 | D12: 0 | E12: 26 | F12: 28 | G12: 1 | H12: 29 | I12: 0 | J12: 0 | K12: 0 | L12: 54 | M12: 98.18% | N12: 1 | O12: 1.82% | P12: 55
A13: 冷凍空調工程科 | B13: 853 | C13: 162 | D13: 0 | E13: 162 | F13: 134 | G13: 0 | H13: 134 | I13: 0 | J13: 0 | K13: 0 | L13: 296 | M13: 100.00% | N13: 0 | O13: 0.00% | P13: 296
A14: 造船工程科 | B14: 44 | C14: 11 | D14: 1 | E14: 12 | F14: 0 | G14: 0 | H14: 0 | I14: 0 | J14: 0 | K14: 0 | L14: 11 | M14: 91.67% | N14: 1 | O14: 8.33% | P14: 12
A15: 電機工程科 | B15: 2,404 | C15: 338 | D15: 3 | E15: 341 | F15: 162 | G15: 0 | H15: 162 | I15: 0 | J15: 0 | K15: 0 | L15: 500 | M15: 99.40% | N15: 3 | O15: 0.60% | P15: 503
A16: 電子工程科 | B16: 225 | C16: 2 | D16: 0 | E16: 2 | F16: 5 | G16: 0 | H16: 5 | I16: 0 | J16: 0 | K16: 0 | L16: 7 | M16: 100.00% | N16: 0 | O16: 0.00% | P16: 7
A17: 資訊科 | B17: 231 | C17: 0 | D17: 0 | E17: 0 | F17: 0 | G17: 0 | H17: 0 | I17: 0 | J17: 0 | K17: 0 | L17: 0 | M17: 0.00% | N17: 0 | O17: 0.00% | P17: 0
A18: 航空工程科 | B18: 157 | C18: 0 | D18: 0 | E18: 0 | F18: 0 | G18: 0 | H18: 0 | I18: 0 | J18: 0 | K18: 0 | L18: 0 | M18: 0.00% | N18: 0 | O18: 0.00% | P18: 0
A19: 化學工程科 | B19: 186 | C19: 1 | D19: 0 | E19: 1 | F19: 6 | G19: 0 | H19: 6 | I19: 0 | J19: 0 | K19: 0 | L19: =SUM(C19,F19,I19) -> 7 | M19: 100.00% | N19: 0 | O19: 0.00% | P19: 7
A20: 工業工程科 | B20: 93 | C20: 0 | D20: 0 | E20: 0 | F20: 0 | G20: 0 | H20: 0 | I20: 0 | J20: 0 | K20: 0 | L20: 0 | M20: 0.00% | N20: 0 | O20: 0.00% | P20: 0
A21: 工業安全科 | B21: 565 | C21: 51 | D21: 4 | E21: 55 | F21: 2 | G21: 0 | H21: 2 | I21: 0 | J21: 0 | K21: 0 | L21: 53 | M21: 92.98% | N21: 4 | O21: 7.02% | P21: 57
A22: 紡織工程科 | B22: 64 | C22: 0 | D22: 0 | E22: 0 | F22: 0 | G22: 0 | H22: 0 | I22: 0 | J22: 0 | K22: 0 | L22: 0 | M22: 0.00% | N22: 0 | O22: 0.00% | P22: 0
A23: 食品科 | B23: 2,365 | C23: 0 | D23: 0 | E23: 0 | F23: 0 | G23: 0 | H23: 0 | I23: 0 | J23: 0 | K23: 0 | L23: 0 | M23: 0.00% | N23: 0 | O23: 0.00% | P23: 0
A24: 冶金工程科 | B24: 35 | C24: 1 | D24: 0 | E24: 1 | F24: 0 | G24: 0 | H24: 0 | I24: 0 | J24: 0 | K24: 0 | L24: 1 | M24: 0.00% | N24: 0 | O24: 0.00% | P24: 1
A25: 農藝科 | B25: 110 | C25: 0 | D25: 0 | E25: 0 | F25: 0 | G25: 0 | H25: 0 | I25: 0 | J25: 0 | K25: 0 | L25: 0 | M25: 0.00% | N25: 0 | O25: 0.00% | P25: 0
A26: 園藝科 | B26: 434 | C26: 6 | D26: 1 | E26: 7 | F26: 0 | G26: 0 | H26: 0 | I26: 0 | J26: 0 | K26: 0 | L26: 6 | M26: 85.71% | N26: 1 | O26: 14.29% | P26: 7
A27: 林業科 | B27: 453 | C27: 10 | D27: 0 | E27: 10 | F27: 0 | G27: 0 | H27: 0 | I27: 0 | J27: 0 | K27: 0 | L27: 10 | M27: 100.00% | N27: 0 | O27: 0.00% | P27: 10
A28: 畜牧科 | B28: 174 | C28: 0 | D28: 0 | E28: 0 | F28: 0 | G28: 0 | H28: 0 | I28: 0 | J28: 0 | K28: 0 | L28: 0 | M28: 0.00% | N28: 0 | O28: 0.00% | P28: 0
A29: 漁撈科 | B29: 81 | C29: 0 | D29: 0 | E29: 0 | F29: 0 | G29: 0 | H29: 0 | I29: 0 | J29: 0 | K29: 0 | L29: 0 | M29: 0.00% | N29: 0 | O29: 0.00% | P29: 0
A30: 水產養殖科 | B30: 338 | C30: 0 | D30: 0 | E30: 0 | F30: 0 | G30: 0 | H30: 0 | I30: 0 | J30: 0 | K30: 0 | L30: 0 | M30: 0.00% | N30: 0 | O30: 0.00% | P30: 0
A31: 水土保持科 | B31: 882 | C31: 46 | D31: 5 | E31: 51 | F31: 201 | G31: 24 | H31: 225 | I31: 0 | J31: 0 | K31: 0 | L31: 247 | M31: 89.49% | N31: 29 | O31: 10.51% | P31: 276
A32: 採礦工程科 | B32: 48 | C32: 4 | D32: 0 | E32: 4 | F32: 3 | G32: 0 | H32: 3 | I32: 0 | J32: 0 | K32: 0 | L32: 7 | M32: 100.00% | N32: 0 | O32: 0.00% | P32: 7
A33: 應用地質科 | B33: 237 | C33: 21 | D33: 0 | E33: 21 | F33: 83 | G33: 4 | H33: 87 | I33: 0 | J33: 0 | K33: 0 | L33: 104 | M33: 96.30% | N33: 4 | O33: 3.70% | P33: 108
A34: 礦業安全科 | B34: 32 | C34: 1 | D34: 0 | E34: 1 | F34: 0 | G34: 0 | H34: 0 | I34: 0 | J34: 0 | K34: 0 | L34: 1 | M34: 100.00% | N34: 0 | O34: 0.00% | P34: 1
A35: 交通工程科 | B35: 341 | C35: 11 | D35: 4 | E35: 15 | F35: 72 | G35: 20 | H35: 92 | I35: 0 | J35: 0 | K35: 0 | L35: 83 | M35: 77.57% | N35: 24 | O35: 22.43% | P35: 107
A36: 職業衛生科 | B36: 211 | C36: 64 | D36: 5 | E36: 69 | F36: 0 | G36: 0 | H36: 0 | I36: 0 | J36: 0 | K36: 0 | L36: 64 | M36: 92.75% | N36: 5 | O36: 7.25% | P36: 69
A37: 資料來源：技術處
A38: 備註： 1.性別資料使用：因傳統思維導致女性背負家庭義務與責任較重、認為女性不適合工程領域、不友善工作環境及刻版印象等原因，造成女性技師所占比例極為少數。 2.應用深化：鼓勵各技師公會或各工程技術顧問商業同業公會等團體舉辦相關活動時，增加性別平權課程，期能藉由「加強宣導性別平等」之觀念，營造尊重女性之友善工作環境，增加女性進入工程領域。 3.未進行國際性別統計比較原因說明：查各國對於技師之資格取得、業務分科、內容規定及限制不盡相同，缺乏共通性標準，且技師個人相關資訊取得不易，變動性亦大，欲進行國際上執業技師之性別比較實有困難。 4.執業技師有同時登記多科別技師證書之情形，經統計截至110年底有效執業技師人數為4,554人， 其中設立技師事務所之執業技師人數為1,327人(女性佔51人)， 組織或受聘於顧問公司之執業技師人數為3,137人(女性佔269人)， 受聘於前2項以外依法令規定必需領有執照之執業技師人數為90人(女性佔1人)。

Sheet 109年
A1: 各科執業技師人數統計(資料截止日期: 109年12月31日)
P2: 表22
A3: 執業 方式 | B3: 領有技師證書人數 | C3: 單獨設立或與其他技師組織聯合技師事務所之執業人數 | F3: 組織或受聘於工程技術顧問公司之執業人數 | I3: 受聘於前款以外依法令規定必需聘用領有執業執照之技師之營利事業或機構之執業人數 | L3: 前三項合計
A4: 科別 | C4: 男 | D4: 女 | E4: 小計 | F4: 男 | G4: 女 | H4: 小計 | I4: 男 | J4: 女 | K4: 小計 | L4: 男 | M4: 比例 | N4: 女 | O4: 比例 | P4: 小計
A5: 土木工程科 | B5: 10,114 | C5: 293 | D5: 5 | E5: =SUM(C5:D5) -> 298 | F5: 1,117 | G5: 43 | H5: =SUM(F5:G5) -> 1,160 | I5: 0 | J5: 0 | K5: =SUM(I5:J5) -> 0 | L5: =SUM(C5,F5,I5) -> 1,410 | M5: =L5/P5 -> 96.71% | N5: =SUM(D5,G5,J5) -> 48 | O5: =N5/P5 -> 3.29% | P5: =SUM(L5,N5) -> 1,458
A6: 水利工程科 | B6: 1,395 | C6: 18 | D6: 0 | E6: =SUM(C6:D6) -> 18 | F6: 234 | G6: 14 | H6: =SUM(F6:G6) -> 248 | I6: 0 | J6: 0 | K6: =SUM(I6:J6) -> 0 | L6: =SUM(C6,F6,I6) -> 252 | M6: =L6/P6 -> 94.74% | N6: =SUM(D6,G6,J6) -> 14 | O6: =N6/P6 -> 5.26% | P6: =SUM(L6,N6) -> 266
A7: 結構工程科 | B7: 1,792 | C7: 254 | D7: 6 | E7: 260 | F7: 368 | G7: 16 | H7: 384 | I7: 0 | J7: 0 | K7: 0 | L7: 622 | M7: 96.58% | N7: 22 | O7: 3.42% | P7: 644
A8: 大地工程科 | B8: 959 | C8: 66 | D8: 0 | E8: 66 | F8: 274 | G8: 7 | H8: 281 | I8: 0 | J8: 0 | K8: 0 | L8: 340 | M8: 97.98% | N8: 7 | O8: 2.02% | P8: 347
A9: 測量科 | B9: 460 | C9: 4 | D9: 0 | E9: 4 | F9: 73 | G9: 8 | H9: 81 | I9: 89 | J9: 1 | K9: 90 | L9: 166 | M9: 94.86% | N9: 9 | O9: 5.14% | P9: 175
A10: 環境工程科 | B10: 2,003 | C10: 97 | D10: 11 | E10: 108 | F10: 292 | G10: 35 | H10: 327 | I10: 0 | J10: 0 | K10: 0 | L10: 389 | M10: 89.43% | N10: 46 | O10: 10.57% | P10: 435
A11: 都市計畫科 | B11: 942 | C11: 37 | D11: 6 | E11: 43 | F11: 137 | G11: 82 | H11: 219 | I11: 0 | J11: 0 | K11: 0 | L11: 174 | M11: 66.41% | N11: 88 | O11: 33.59% | P11: 262
A12: 機械工程科 | B12: 679 | C12: 28 | D12: 0 | E12: 28 | F12: 27 | G12: 0 | H12: 27 | I12: 0 | J12: 0 | K12: 0 | L12: 55 | M12: 100.00% | N12: 0 | O12: 0.00% | P12: 55
A13: 冷凍空調工程科 | B13: 761 | C13: 160 | D13: 0 | E13: 160 | F13: 121 | G13: 0 | H13: 121 | I13: 0 | J13: 0 | K13: 0 | L13: 281 | M13: 100.00% | N13: 0 | O13: 0.00% | P13: 281
A14: 造船工程科 | B14: 42 | C14: 9 | D14: 0 | E14: 9 | F14: 0 | G14: 0 | H14: 0 | I14: 0 | J14: 0 | K14: 0 | L14: 9 | M14: 100.00% | N14: 0 | O14: 0.00% | P14: 9
A15: 電機工程科 | B15: 2,295 | C15: 327 | D15: 1 | E15: 328 | F15: 151 | G15: 0 | H15: 151 | I15: 0 | J15: 0 | K15: 0 | L15: 478 | M15: 99.79% | N15: 1 | O15: 0.21% | P15: 479
A16: 電子工程科 | B16: 212 | C16: 2 | D16: 0 | E16: 2 | F16: 5 | G16: 0 | H16: 5 | I16: 0 | J16: 0 | K16: 0 | L16: 7 | M16: 100.00% | N16: 0 | O16: 0.00% | P16: 7
A17: 資訊科 | B17: 227 | C17: 0 | D17: 0 | E17: 0 | F17: 0 | G17: 0 | H17: 0 | I17: 0 | J17: 0 | K17: 0 | L17: 0 | M17: 0.00% | N17: 0 | O17: 0.00% | P17: 0
A18: 航空工程科 | B18: 157 | C18: 0 | D18: 0 | E18: 0 | F18: 0 | G18: 0 | H18: 0 | I18: 0 | J18: 0 | K18: 0 | L18: 0 | M18: 0.00% | N18: 0 | O18: 0.00% | P18: 0
A19: 化學工程科 | B19: 181 | C19: 1 | D19: 0 | E19: 1 | F19: 6 | G19: 0 | H19: 6 | I19: 0 | J19: 0 | K19: 0 | L19: =SUM(C19,F19,I19) -> 7 | M19: 100.00% | N19: 0 | O19: 0.00% | P19: 7
A20: 工業工程科 | B20: 92 | C20: 0 | D20: 0 | E20: 0 | F20: 0 | G20: 0 | H20: 0 | I20: 0 | J20: 0 | K20: 0 | L20: 0 | M20: 0.00% | N20: 0 | O20: 0.00% | P20: 0
A21: 工業安全科 | B21: 510 | C21: 50 | D21: 5 | E21: 55 | F21: 2 | G21: 0 | H21: 2 | I21: 0 | J21: 0 | K21: 0 | L21: 52 | M21: 91.23% | N21: 5 | O21: 8.77% | P21: 57
A22: 紡織工程科 | B22: 64 | C22: 0 | D22: 0 | E22: 0 | F22: 0 | G22: 0 | H22: 0 | I22: 0 | J22: 0 | K22: 0 | L22: 0 | M22: 0.00% | N22: 0 | O22: 0.00% | P22: 0
A23: 食品科 | B23: 2,051 | C23: 0 | D23: 0 | E23: 0 | F23: 0 | G23: 0 | H23: 0 | I23: 0 | J23: 0 | K23: 0 | L23: 0 | M23: 0.00% | N23: 0 | O23: 0.00% | P23: 0
A24: 冶金工程科 | B24: 34 | C24: 1 | D24: 0 | E24: 1 | F24: 0 | G24: 0 | H24: 0 | I24: 0 | J24: 0 | K24: 0 | L24: 1 | M24: 0.00% | N24: 0 | O24: 0.00% | P24: 1
A25: 農藝科 | B25: 105 | C25: 0 | D25: 0 | E25: 0 | F25: 0 | G25: 0 | H25: 0 | I25: 0 | J25: 0 | K25: 0 | L25: 0 | M25: 0.00% | N25: 0 | O25: 0.00% | P25: 0
A26: 園藝科 | B26: 419 | C26: 6 | D26: 1 | E26: 7 | F26: 0 | G26: 0 | H26: 0 | I26: 0 | J26: 0 | K26: 0 | L26: 6 | M26: 85.71% | N26: 1 | O26: 14.29% | P26: 7
A27: 林業科 | B27: 423 | C27: 8 | D27: 0 | E27: 8 | F27: 0 | G27: 0 | H27: 0 | I27: 0 | J27: 0 | K27: 0 | L27: 8 | M27: 100.00% | N27: 0 | O27: 0.00% | P27: 8
A28: 畜牧科 | B28: 168 | C28: 0 | D28: 0 | E28: 0 | F28: 0 | G28: 0 | H28: 0 | I28: 0 | J28: 0 | K28: 0 | L28: 0 | M28: 0.00% | N28: 0 | O28: 0.00% | P28: 0
A29: 漁撈科 | B29: 79 | C29: 0 | D29: 0 | E29: 0 | F29: 0 | G29: 0 | H29: 0 | I29: 0 | J29: 0 | K29: 0 | L29: 0 | M29: 0.00% | N29: 0 | O29: 0.00% | P29: 0
A30: 水產養殖科 | B30: 330 | C30: 0 | D30: 0 | E30: 0 | F30: 0 | G30: 0 | H30: 0 | I30: 0 | J30: 0 | K30: 0 | L30: 0 | M30: 0.00% | N30: 0 | O30: 0.00% | P30: 0
A31: 水土保持科 | B31: 772 | C31: 43 | D31: 5 | E31: 48 | F31: 190 | G31: 22 | H31: 212 | I31: 0 | J31: 0 | K31: 0 | L31: 233 | M31: 89.62% | N31: 27 | O31: 10.38% | P31: 260
A32: 採礦工程科 | B32: 35 | C32: 4 | D32: 0 | E32: 4 | F32: 3 | G32: 0 | H32: 3 | I32: 0 | J32: 0 | K32: 0 | L32: 7 | M32: 100.00% | N32: 0 | O32: 0.00% | P32: 7
A33: 應用地質科 | B33: 212 | C33: 19 | D33: 0 | E33: 19 | F33: 82 | G33: 4 | H33: 86 | I33: 0 | J33: 0 | K33: 0 | L33: 101 | M33: 96.19% | N33: 4 | O33: 3.81% | P33: 105
A34: 礦業安全科 | B34: 31 | C34: 1 | D34: 0 | E34: 1 | F34: 0 | G34: 0 | H34: 0 | I34: 0 | J34: 0 | K34: 0 | L34: 1 | M34: 100.00% | N34: 0 | O34: 0.00% | P34: 1
A35: 交通工程科 | B35: 303 | C35: 9 | D35: 5 | E35: 14 | F35: 68 | G35: 17 | H35: 85 | I35: 0 | J35: 0 | K35: 0 | L35: 77 | M35: 77.78% | N35: 22 | O35: 22.22% | P35: 99
A36: 職業衛生科 | B36: 80 | C36: 58 | D36: 5 | E36: 63 | F36: 0 | G36: 0 | H36: 0 | I36: 0 | J36: 0 | K36: 0 | L36: 58 | M36: 92.06% | N36: 5 | O36: 7.94% | P36: 63
A37: 資料來源：技術處
A38: 備註： 1.性別資料使用：因傳統思維導致女性背負家庭義務與責任較重、認為女性不適合工程領域、不友善工作環境及刻版印象等原因，造成女性技師所占比例極為少數。 2.應用深化：鼓勵各技師公會或各工程技術顧問商業同業公會等團體舉辦相關活動時，增加性別平權課程，期能藉由「加強宣導性別平等」之觀念，營造尊重女性之友善工作環境，增加女性進入工程領域。 3.未進行國際性別統計比較原因說明：查各國對於技師之資格取得、業務分科、內容規定及限制不盡相同，缺乏共通性標準，且技師個人相關資訊取得不易，變動性亦大，欲進行國際上執業技師之性別比較實有困難。 4.執業技師有同時登記多科別技師證書之情形，經統計截至109年底有效執業技師人數為4,378人， 其中設立技師事務所之執業技師人數為1,276人(女性佔44人)， 組織或受聘於顧問公司之執業技師人數為3,012人(女性佔244人)， 受聘於前2項以外依法令規定必需領有執照之執業技師人數為90人(女性佔1人)。

Sheet 108年
A1: 各科執業技師人數統計(資料截止日期: 108年12月31日)
P2: 表22
A3: 執業 方式 | B3: 領有技師證書人數 | C3: 單獨設立或與其他技師組織聯合技師事務所之執業人數 | F3: 組織或受聘於工程技術顧問公司之執業人數 | I3: 受聘於前款以外依法令規定必需聘用領有執業執照之技師之營利事業或機構之執業人數 | L3: 前三項合計
A4: 科別 | C4: 男 | D4: 女 | E4: 小計 | F4: 男 | G4: 女 | H4: 小計 | I4: 男 | J4: 女 | K4: 小計 | L4: 男 | M4: 比例 | N4: 女 | O4: 比例 | P4: 小計
A5: 土木工程科 | B5: 10,114 | C5: 287 | D5: 7 | E5: =SUM(C5:D5) -> 294 | F5: 1,056 | G5: 34 | H5: =SUM(F5:G5) -> 1,090 | I5: 0 | J5: 0 | K5: =SUM(I5:J5) -> 0 | L5: =SUM(C5,F5,I5) -> 1,343 | M5: =L5/P5 -> 97.04% | N5: =SUM(D5,G5,J5) -> 41 | O5: =N5/P5 -> 2.96% | P5: =SUM(L5,N5) -> 1,384
A6: 水利工程科 | B6: 1,395 | C6: 16 | D6: 0 | E6: =SUM(C6:D6) -> 16 | F6: 215 | G6: 9 | H6: =SUM(F6:G6) -> 224 | I6: 0 | J6: 0 | K6: =SUM(I6:J6) -> 0 | L6: =SUM(C6,F6,I6) -> 231 | M6: =L6/P6 -> 96.25% | N6: =SUM(D6,G6,J6) -> 9 | O6: =N6/P6 -> 3.75% | P6: =SUM(L6,N6) -> 240
A7: 結構工程科 | B7: 1,792 | C7: 247 | D7: 7 | E7: 254 | F7: 354 | G7: 14 | H7: 368 | I7: 0 | J7: 0 | K7: 0 | L7: 601 | M7: 96.62% | N7: 21 | O7: 3.38% | P7: 622
A8: 大地工程科 | B8: 959 | C8: 67 | D8: 0 | E8: 67 | F8: 273 | G8: 5 | H8: 278 | I8: 0 | J8: 0 | K8: 0 | L8: 340 | M8: 98.55% | N8: 5 | O8: 1.45% | P8: 345
A9: 測量科 | B9: 460 | C9: 4 | D9: 0 | E9: 4 | F9: 69 | G9: 6 | H9: 75 | I9: 80 | J9: 0 | K9: 80 | L9: 153 | M9: 96.23% | N9: 6 | O9: 3.77% | P9: 159
A10: 環境工程科 | B10: 2,003 | C10: 91 | D10: 9 | E10: 100 | F10: 294 | G10: 35 | H10: 329 | I10: 0 | J10: 0 | K10: 0 | L10: 385 | M10: 89.74% | N10: 44 | O10: 10.26% | P10: 429
A11: 都市計畫科 | B11: 942 | C11: 32 | D11: 6 | E11: 38 | F11: 137 | G11: 77 | H11: 214 | I11: 0 | J11: 0 | K11: 0 | L11: 169 | M11: 67.06% | N11: 83 | O11: 32.94% | P11: 252
A12: 機械工程科 | B12: 679 | C12: 29 | D12: 0 | E12: 29 | F12: 29 | G12: 0 | H12: 29 | I12: 0 | J12: 0 | K12: 0 | L12: 58 | M12: 100.00% | N12: 0 | O12: 0.00% | P12: 58
A13: 冷凍空調工程科 | B13: 761 | C13: 147 | D13: 0 | E13: 147 | F13: 120 | G13: 0 | H13: 120 | I13: 0 | J13: 0 | K13: 0 | L13: 267 | M13: 100.00% | N13: 0 | O13: 0.00% | P13: 267
A14: 造船工程科 | B14: 42 | C14: 9 | D14: 0 | E14: 9 | F14: 0 | G14: 0 | H14: 0 | I14: 0 | J14: 0 | K14: 0 | L14: 9 | M14: 100.00% | N14: 0 | O14: 0.00% | P14: 9
A15: 電機工程科 | B15: 2,295 | C15: 311 | D15: 1 | E15: 312 | F15: 146 | G15: 0 | H15: 146 | I15: 0 | J15: 0 | K15: 0 | L15: 457 | M15: 99.78% | N15: 1 | O15: 0.22% | P15: 458
A16: 電子工程科 | B16: 212 | C16: 2 | D16: 0 | E16: 2 | F16: 3 | G16: 0 | H16: 3 | I16: 0 | J16: 0 | K16: 0 | L16: 5 | M16: 100.00% | N16: 0 | O16: 0.00% | P16: 5
A17: 資訊科 | B17: 227 | C17: 0 | D17: 0 | E17: 0 | F17: 0 | G17: 0 | H17: 0 | I17: 0 | J17: 0 | K17: 0 | L17: 0 | M17: 0.00% | N17: 0 | O17: 0.00% | P17: 0
A18: 航空工程科 | B18: 157 | C18: 0 | D18: 0 | E18: 0 | F18: 0 | G18: 0 | H18: 0 | I18: 0 | J18: 0 | K18: 0 | L18: 0 | M18: 0.00% | N18: 0 | O18: 0.00% | P18: 0
A19: 化學工程科 | B19: 181 | C19: 1 | D19: 0 | E19: 1 | F19: 6 | G19: 0 | H19: 6 | I19: 0 | J19: 0 | K19: 0 | L19: =SUM(C19,F19,I19) -> 7 | M19: 100.00% | N19: 0 | O19: 0.00% | P19: 7
A20: 工業工程科 | B20: 92 | C20: 0 | D20: 0 | E20: 0 | F20: 0 | G20: 0 | H20: 0 | I20: 0 | J20: 0 | K20: 0 | L20: 0 | M20: 0.00% | N20: 0 | O20: 0.00% | P20: 0
A21: 工業安全科 | B21: 510 | C21: 46 | D21: 5 | E21: 51 | F21: 1 | G21: 0 | H21: 1 | I21: 0 | J21: 0 | K21: 0 | L21: 47 | M21: 90.38% | N21: 5 | O21: 9.62% | P21: 52
A22: 紡織工程科 | B22: 64 | C22: 0 | D22: 0 | E22: 0 | F22: 0 | G22: 0 | H22: 0 | I22: 0 | J22: 0 | K22: 0 | L22: 0 | M22: 0.00% | N22: 0 | O22: 0.00% | P22: 0
A23: 食品科 | B23: 2,051 | C23: 0 | D23: 0 | E23: 0 | F23: 0 | G23: 0 | H23: 0 | I23: 0 | J23: 0 | K23: 0 | L23: 0 | M23: 0.00% | N23: 0 | O23: 0.00% | P23: 0
A24: 冶金工程科 | B24: 34 | C24: 0 | D24: 0 | E24: 0 | F24: 0 | G24: 0 | H24: 0 | I24: 0 | J24: 0 | K24: 0 | L24: 0 | M24: 0.00% | N24: 0 | O24: 0.00% | P24: 0
A25: 農藝科 | B25: 105 | C25: 0 | D25: 0 | E25: 0 | F25: 0 | G25: 0 | H25: 0 | I25: 0 | J25: 0 | K25: 0 | L25: 0 | M25: 0.00% | N25: 0 | O25: 0.00% | P25: 0
A26: 園藝科 | B26: 419 | C26: 2 | D26: 1 | E26: 3 | F26: 0 | G26: 0 | H26: 0 | I26: 0 | J26: 0 | K26: 0 | L26: 2 | M26: 66.67% | N26: 1 | O26: 33.33% | P26: 3
A27: 林業科 | B27: 423 | C27: 7 | D27: 0 | E27: 7 | F27: 0 | G27: 0 | H27: 0 | I27: 0 | J27: 0 | K27: 0 | L27: 7 | M27: 100.00% | N27: 0 | O27: 0.00% | P27: 7
A28: 畜牧科 | B28: 168 | C28: 0 | D28: 0 | E28: 0 | F28: 0 | G28: 0 | H28: 0 | I28: 0 | J28: 0 | K28: 0 | L28: 0 | M28: 0.00% | N28: 0 | O28: 0.00% | P28: 0
A29: 漁撈科 | B29: 79 | C29: 0 | D29: 0 | E29: 0 | F29: 0 | G29: 0 | H29: 0 | I29: 0 | J29: 0 | K29: 0 | L29: 0 | M29: 0.00% | N29: 0 | O29: 0.00% | P29: 0
A30: 水產養殖科 | B30: 330 | C30: 0 | D30: 0 | E30: 0 | F30: 0 | G30: 0 | H30: 0 | I30: 0 | J30: 0 | K30: 0 | L30: 0 | M30: 0.00% | N30: 0 | O30: 0.00% | P30: 0
A31: 水土保持科 | B31: 772 | C31: 43 | D31: 5 | E31: 48 | F31: 180 | G31: 21 | H31: 201 | I31: 0 | J31: 0 | K31: 0 | L31: 223 | M31: 89.56% | N31: 26 | O31: 10.44% | P31: 249
A32: 採礦工程科 | B32: 35 | C32: 3 | D32: 0 | E32: 3 | F32: 4 | G32: 0 | H32: 4 | I32: 0 | J32: 0 | K32: 0 | L32: 7 | M32: 100.00% | N32: 0 | O32: 0.00% | P32: 7
A33: 應用地質科 | B33: 212 | C33: 19 | D33: 0 | E33: 19 | F33: 79 | G33: 3 | H33: 82 | I33: 0 | J33: 0 | K33: 0 | L33: 98 | M33: 97.03% | N33: 3 | O33: 2.97% | P33: 101
A34: 礦業安全科 | B34: 31 | C34: 1 | D34: 0 | E34: 1 | F34: 0 | G34: 0 | H34: 0 | I34: 0 | J34: 0 | K34: 0 | L34: 1 | M34: 100.00% | N34: 0 | O34: 0.00% | P34: 1
A35: 交通工程科 | B35: 303 | C35: 9 | D35: 5 | E35: 14 | F35: 69 | G35: 13 | H35: 82 | I35: 0 | J35: 0 | K35: 0 | L35: 78 | M35: 81.25% | N35: 18 | O35: 18.75% | P35: 96
A36: 職業衛生科 | B36: 80 | C36: 41 | D36: 4 | E36: 45 | F36: 0 | G36: 0 | H36: 0 | I36: 0 | J36: 0 | K36: 0 | L36: 41 | M36: 91.11% | N36: 4 | O36: 8.89% | P36: 45
A37: 資料來源：技術處
A38: 備註： 1.性別資料使用：因傳統思維導致女性背負家庭義務與責任較重、認為女性不適合工程領域、不友善工作環境及刻版印象等原因，造成女性技師所占比例極為少數。 2.應用深化：鼓勵各技師公會或各工程技術顧問商業同業公會等團體舉辦相關活動時，增加性別平權課程，期能藉由「加強宣導性別平等」之觀念，營造尊重女性之友善工作環境，增加女性進入工程領域。 3.未進行國際性別統計比較原因說明：查各國對於技師之資格取得、業務分科、內容規定及限制不盡相同，缺乏共通性標準，且技師個人相關資訊取得不易，變動性亦大，欲進行國際上執業技師之性別比較實有困難。 4.執業技師有同時登記多科別技師證書之情形，經統計截至108年底有效執業技師人數為4,187人，其中女性佔258人。

Sheet 107年
A1: 各科執業技師人數統計(資料截止日期: 107年12月31日)
P2: 表22
A3: 執業 方式 | B3: 領有技師證書人數 | C3: 單獨設立或與其他技師組織聯合技師事務所之執業人數 | F3: 組織或受聘於工程技術顧問公司之執業人數 | I3: 受聘於前款以外依法令規定必需聘用領有執業執照之技師之營利事業或機構之執業人數 | L3: 前三項合計
A4: 科別 | C4: 男 | D4: 女 | E4: 小計 | F4: 男 | G4: 女 | H4: 小計 | I4: 男 | J4: 女 | K4: 小計 | L4: 男 | M4: 比例 | N4: 女 | O4: 比例 | P4: 小計
A5: 土木工程科 | B5: 10,059 | C5: 269 | D5: 4 | E5: =SUM(C5:D5) -> 273 | F5: 985 | G5: 27 | H5: =SUM(F5:G5) -> 1,012 | I5: 0 | J5: 0 | K5: =SUM(I5:J5) -> 0 | L5: =SUM(C5,F5,I5) -> 1,254 | M5: =L5/P5 -> 97.59% | N5: =SUM(D5,G5,J5) -> 31 | O5: =N5/P5 -> 2.41% | P5: =SUM(L5,N5) -> 1,285
A6: 水利工程科 | B6: 1,389 | C6: 20 | D6: 0 | E6: =SUM(C6:D6) -> 20 | F6: 209 | G6: 8 | H6: =SUM(F6:G6) -> 217 | I6: 0 | J6: 0 | K6: =SUM(I6:J6) -> 0 | L6: =SUM(C6,F6,I6) -> 229 | M6: =L6/P6 -> 96.62% | N6: =SUM(D6,G6,J6) -> 8 | O6: =N6/P6 -> 3.38% | P6: =SUM(L6,N6) -> 237
A7: 結構工程科 | B7: 1,783 | C7: 235 | D7: 6 | E7: 241 | F7: 334 | G7: 12 | H7: 346 | I7: 0 | J7: 0 | K7: 0 | L7: 569 | M7: 96.93% | N7: 18 | O7: 3.07% | P7: 587
A8: 大地工程科 | B8: 954 | C8: 65 | D8: 0 | E8: 65 | F8: 267 | G8: 4 | H8: 271 | I8: 0 | J8: 0 | K8: 0 | L8: 332 | M8: 98.81% | N8: 4 | O8: 1.19% | P8: 336
A9: 測量科 | B9: 459 | C9: 3 | D9: 0 | E9: 3 | F9: 73 | G9: 6 | H9: 79 | I9: 76 | J9: 0 | K9: 76 | L9: 152 | M9: 96.20% | N9: 6 | O9: 3.80% | P9: 158
A10: 環境工程科 | B10: 1,999 | C10: 87 | D10: 10 | E10: 97 | F10: 287 | G10: 32 | H10: 319 | I10: 0 | J10: 0 | K10: 0 | L10: 374 | M10: 89.90% | N10: 42 | O10: 10.10% | P10: 416
A11: 都市計畫科 | B11: 937 | C11: 30 | D11: 4 | E11: 34 | F11: 139 | G11: 73 | H11: 212 | I11: 0 | J11: 0 | K11: 0 | L11: 169 | M11: 68.70% | N11: 77 | O11: 31.30% | P11: 246
A12: 機械工程科 | B12: 679 | C12: 28 | D12: 0 | E12: 28 | F12: 29 | G12: 0 | H12: 29 | I12: 0 | J12: 0 | K12: 0 | L12: 57 | M12: 100.00% | N12: 0 | O12: 0.00% | P12: 57
A13: 冷凍空調工程科 | B13: 760 | C13: 141 | D13: 0 | E13: 141 | F13: 127 | G13: 1 | H13: 128 | I13: 0 | J13: 0 | K13: 0 | L13: 268 | M13: 99.63% | N13: 1 | O13: 0.37% | P13: 269
A14: 造船工程科 | B14: 42 | C14: 9 | D14: 0 | E14: 9 | F14: 0 | G14: 0 | H14: 0 | I14: 0 | J14: 0 | K14: 0 | L14: 9 | M14: 100.00% | N14: 0 | O14: 0.00% | P14: 9
A15: 電機工程科 | B15: 2,292 | C15: 304 | D15: 1 | E15: 305 | F15: 136 | G15: 0 | H15: 136 | I15: 0 | J15: 0 | K15: 0 | L15: 440 | M15: 99.77% | N15: 1 | O15: 0.23% | P15: 441
A16: 電子工程科 | B16: 212 | C16: 2 | D16: 0 | E16: 2 | F16: 3 | G16: 0 | H16: 3 | I16: 0 | J16: 0 | K16: 0 | L16: 5 | M16: 100.00% | N16: 0 | O16: 0.00% | P16: 5
A17: 資訊科 | B17: 226 | C17: 0 | D17: 0 | E17: 0 | F17: 0 | G17: 0 | H17: 0 | I17: 0 | J17: 0 | K17: 0 | L17: 0 | M17: 0.00% | N17: 0 | O17: 0.00% | P17: 0
A18: 航空工程科 | B18: 157 | C18: 0 | D18: 0 | E18: 0 | F18: 0 | G18: 0 | H18: 0 | I18: 0 | J18: 0 | K18: 0 | L18: 0 | M18: 0.00% | N18: 0 | O18: 0.00% | P18: 0
A19: 化學工程科 | B19: 179 | C19: 1 | D19: 0 | E19: 1 | F19: 6 | G19: 0 | H19: 6 | I19: 0 | J19: 0 | K19: 0 | L19: 7 | M19: 100.00% | N19: 0 | O19: 0.00% | P19: 7
A20: 工業工程科 | B20: 92 | C20: 0 | D20: 0 | E20: 0 | F20: 0 | G20: 0 | H20: 0 | I20: 0 | J20: 0 | K20: 0 | L20: 0 | M20: 0.00% | N20: 0 | O20: 0.00% | P20: 0
A21: 工業安全科 | B21: 506 | C21: 38 | D21: 3 | E21: 41 | F21: 1 | G21: 0 | H21: 1 | I21: 0 | J21: 0 | K21: 0 | L21: 39 | M21: 92.86% | N21: 3 | O21: 7.14% | P21: 42
A22: 紡織工程科 | B22: 64 | C22: 1 | D22: 0 | E22: 1 | F22: 0 | G22: 0 | H22: 0 | I22: 0 | J22: 0 | K22: 0 | L22: 1 | M22: 100.00% | N22: 0 | O22: 0.00% | P22: 1
A23: 食品科 | B23: 2,036 | C23: 0 | D23: 0 | E23: 0 | F23: 0 | G23: 0 | H23: 0 | I23: 0 | J23: 0 | K23: 0 | L23: 0 | M23: 0.00% | N23: 0 | O23: 0.00% | P23: 0
A24: 冶金工程科 | B24: 34 | C24: 0 | D24: 0 | E24: 0 | F24: 0 | G24: 0 | H24: 0 | I24: 0 | J24: 0 | K24: 0 | L24: 0 | M24: 0.00% | N24: 0 | O24: 0.00% | P24: 0
A25: 農藝科 | B25: 104 | C25: 0 | D25: 0 | E25: 0 | F25: 0 | G25: 0 | H25: 0 | I25: 0 | J25: 0 | K25: 0 | L25: 0 | M25: 0.00% | N25: 0 | O25: 0.00% | P25: 0
A26: 園藝科 | B26: 419 | C26: 2 | D26: 1 | E26: 3 | F26: 0 | G26: 0 | H26: 0 | I26: 0 | J26: 0 | K26: 0 | L26: 2 | M26: 66.67% | N26: 1 | O26: 33.33% | P26: 3
A27: 林業科 | B27: 423 | C27: 4 | D27: 0 | E27: 4 | F27: 0 | G27: 0 | H27: 0 | I27: 0 | J27: 0 | K27: 0 | L27: 4 | M27: 100.00% | N27: 0 | O27: 0.00% | P27: 4
A28: 畜牧科 | B28: 168 | C28: 0 | D28: 0 | E28: 0 | F28: 0 | G28: 0 | H28: 0 | I28: 0 | J28: 0 | K28: 0 | L28: 0 | M28: 0.00% | N28: 0 | O28: 0.00% | P28: 0
A29: 漁撈科 | B29: 79 | C29: 0 | D29: 0 | E29: 0 | F29: 0 | G29: 0 | H29: 0 | I29: 0 | J29: 0 | K29: 0 | L29: 0 | M29: 0.00% | N29: 0 | O29: 0.00% | P29: 0
A30: 水產養殖科 | B30: 330 | C30: 0 | D30: 0 | E30: 0 | F30: 0 | G30: 0 | H30: 0 | I30: 0 | J30: 0 | K30: 0 | L30: 0 | M30: 0.00% | N30: 0 | O30: 0.00% | P30: 0
A31: 水土保持科 | B31: 766 | C31: 45 | D31: 6 | E31: 51 | F31: 160 | G31: 19 | H31: 179 | I31: 0 | J31: 0 | K31: 0 | L31: 205 | M31: 89.13% | N31: 25 | O31: 10.87% | P31: 230
A32: 採礦工程科 | B32: 35 | C32: 3 | D32: 0 | E32: 3 | F32: 4 | G32: 0 | H32: 4 | I32: 0 | J32: 0 | K32: 0 | L32: 7 | M32: 100.00% | N32: 0 | O32: 0.00% | P32: 7
A33: 應用地質科 | B33: 211 | C33: 17 | D33: 0 | E33: 17 | F33: 77 | G33: 3 | H33: 80 | I33: 0 | J33: 0 | K33: 0 | L33: 94 | M33: 96.91% | N33: 3 | O33: 3.09% | P33: 97
A34: 礦業安全科 | B34: 31 | C34: 1 | D34: 0 | E34: 1 | F34: 0 | G34: 0 | H34: 0 | I34: 0 | J34: 0 | K34: 0 | L34: 1 | M34: 100.00% | N34: 0 | O34: 0.00% | P34: 1
A35: 交通工程科 | B35: 299 | C35: 6 | D35: 5 | E35: 11 | F35: 65 | G35: 12 | H35: 77 | I35: 0 | J35: 0 | K35: 0 | L35: 71 | M35: 80.68% | N35: 17 | O35: 19.32% | P35: 88
A36: 職業衛生科 | B36: 70 | C36: 20 | D36: 2 | E36: 22 | F36: 0 | G36: 0 | H36: 0 | I36: 0 | J36: 0 | K36: 0 | L36: 20 | M36: 90.91% | N36: 2 | O36: 9.09% | P36: 22
A37: 資料來源：技術處
A38: 備註： 1.性別資料使用：因傳統思維導致女性背負家庭義務與責任較重、認為女性不適合工程領域、不友善工作環境及刻版印象等原因，造成女性技師所占比例極為少數。 2.應用深化：鼓勵各技師公會或各工程技術顧問商業同業公會等團體舉辦相關活動時，增加性別平權課程，期能藉由「加強宣導性別平等」之觀念，營造尊重女性之友善工作環境，增加女性進入工程領域。 3.未進行國際性別統計比較原因說明：查各國對於技師之資格取得、業務分科、內容規定及限制不盡相同，缺乏共通性標準，且技師個人相關資訊取得不易，變動性亦大，欲進行國際上執業技師之性別比較實有困難。 4.執業技師有同時登記多科別技師證書之情形，經統計截至107年底有效執業技師人數為3,990人，其中女性佔234人。

Sheet 106年
A1: 各科執業技師人數統計(資料截止日期: 106年12月31日)
P2: 表22
A3: 執業 方式 | B3: 領有技師證書人數 | C3: 單獨設立或與其他技師組織聯合技師事務所之執業人數 | F3: 組織或受聘於工程技術顧問公司之執業人數 | I3: 受聘於前款以外依法令規定必需聘用領有執業執照之技師之營利事業或機構之執業人數 | L3: 前三項合計
A4: 科別 | C4: 男 | D4: 女 | E4: 小計 | F4: 男 | G4: 女 | H4: 小計 | I4: 男 | J4: 女 | K4: 小計 | L4: 男 | M4: 比例 | N4: 女 | O4: 比例 | P4: 小計
A5: 土木工程科 | B5: 9,653 | C5: 259 | D5: 6 | E5: =SUM(C5:D5) -> 265 | F5: 932 | G5: 17 | H5: =SUM(F5:G5) -> 949 | I5: 0 | J5: 0 | K5: =SUM(I5:J5) -> 0 | L5: =SUM(C5,F5,I5) -> 1,191 | M5: =L5/P5 -> 98.11% | N5: =SUM(D5,G5,J5) -> 23 | O5: =N5/P5 -> 1.89% | P5: =SUM(L5,N5) -> 1,214
A6: 水利工程科 | B6: 1,326 | C6: 22 | D6: 0 | E6: =SUM(C6:D6) -> 22 | F6: 202 | G6: 7 | H6: =SUM(F6:G6) -> 209 | I6: 0 | J6: 0 | K6: =SUM(I6:J6) -> 0 | L6: =SUM(C6,F6,I6) -> 224 | M6: =L6/P6 -> 96.97% | N6: =SUM(D6,G6,J6) -> 7 | O6: =N6/P6 -> 3.03% | P6: =SUM(L6,N6) -> 231
A7: 結構工程科 | B7: 1,727 | C7: 234 | D7: 7 | E7: 241 | F7: 315 | G7: 13 | H7: 328 | I7: 0 | J7: 0 | K7: 0 | L7: 549 | M7: 96.49% | N7: 20 | O7: 3.51% | P7: 569
A8: 大地工程科 | B8: 922 | C8: 61 | D8: 0 | E8: 61 | F8: 255 | G8: 4 | H8: 259 | I8: 0 | J8: 0 | K8: 0 | L8: 316 | M8: 98.75% | N8: 4 | O8: 1.25% | P8: 320
A9: 測量科 | B9: 444 | C9: 3 | D9: 0 | E9: 3 | F9: 75 | G9: 4 | H9: 79 | I9: 75 | J9: 0 | K9: 75 | L9: 153 | M9: 97.45% | N9: 4 | O9: 2.55% | P9: 157
A10: 環境工程科 | B10: 1,971 | C10: 82 | D10: 8 | E10: 90 | F10: 270 | G10: 32 | H10: 302 | I10: 0 | J10: 0 | K10: 0 | L10: 352 | M10: 89.80% | N10: 40 | O10: 10.20% | P10: 392
A11: 都市計畫科 | B11: 903 | C11: 24 | D11: 3 | E11: 27 | F11: 138 | G11: 71 | H11: 209 | I11: 0 | J11: 0 | K11: 0 | L11: 162 | M11: 68.64% | N11: 74 | O11: 31.36% | P11: 236
A12: 機械工程科 | B12: 674 | C12: 28 | D12: 0 | E12: 28 | F12: 31 | G12: 0 | H12: 31 | I12: 0 | J12: 0 | K12: 0 | L12: 59 | M12: 100.00% | N12: 0 | O12: 0.00% | P12: 59
A13: 冷凍空調工程科 | B13: 728 | C13: 128 | D13: 0 | E13: 128 | F13: 124 | G13: 1 | H13: 125 | I13: 0 | J13: 0 | K13: 0 | L13: 252 | M13: 99.60% | N13: 1 | O13: 0.40% | P13: 253
A14: 造船工程科 | B14: 41 | C14: 13 | D14: 0 | E14: 13 | F14: 0 | G14: 0 | H14: 0 | I14: 0 | J14: 0 | K14: 0 | L14: 13 | M14: 100.00% | N14: 0 | O14: 0.00% | P14: 13
A15: 電機工程科 | B15: 2,269 | C15: 299 | D15: 1 | E15: 300 | F15: 135 | G15: 0 | H15: 135 | I15: 0 | J15: 0 | K15: 0 | L15: 434 | M15: 99.77% | N15: 1 | O15: 0.23% | P15: 435
A16: 電子工程科 | B16: 207 | C16: 2 | D16: 0 | E16: 2 | F16: 3 | G16: 0 | H16: 3 | I16: 0 | J16: 0 | K16: 0 | L16: 5 | M16: 100.00% | N16: 0 | O16: 0.00% | P16: 5
A17: 資訊科 | B17: 224 | C17: 0 | D17: 0 | E17: 0 | F17: 0 | G17: 0 | H17: 0 | I17: 0 | J17: 0 | K17: 0 | L17: 0 | M17: 0.00% | N17: 0 | O17: 0.00% | P17: 0
A18: 航空工程科 | B18: 157 | C18: 0 | D18: 0 | E18: 0 | F18: 0 | G18: 0 | H18: 0 | I18: 0 | J18: 0 | K18: 0 | L18: 0 | M18: 0.00% | N18: 0 | O18: 0.00% | P18: 0
A19: 化學工程科 | B19: 177 | C19: 1 | D19: 0 | E19: 1 | F19: 6 | G19: 0 | H19: 6 | I19: 0 | J19: 0 | K19: 0 | L19: 7 | M19: 100.00% | N19: 0 | O19: 0.00% | P19: 7
A20: 工業工程科 | B20: 92 | C20: 0 | D20: 0 | E20: 0 | F20: 1 | G20: 0 | H20: 1 | I20: 0 | J20: 0 | K20: 0 | L20: 1 | M20: 100.00% | N20: 0 | O20: 0.00% | P20: 1
A21: 工業安全科 | B21: 496 | C21: 36 | D21: 2 | E21: 38 | F21: 1 | G21: 0 | H21: 1 | I21: 0 | J21: 0 | K21: 0 | L21: 37 | M21: 94.87% | N21: 2 | O21: 5.13% | P21: 39
A22: 紡織工程科 | B22: 63 | C22: 1 | D22: 0 | E22: 1 | F22: 0 | G22: 0 | H22: 0 | I22: 0 | J22: 0 | K22: 0 | L22: 1 | M22: 100.00% | N22: 0 | O22: 0.00% | P22: 1
A23: 食品科 | B23: 1,859 | C23: 0 | D23: 0 | E23: 0 | F23: 0 | G23: 0 | H23: 0 | I23: 0 | J23: 0 | K23: 0 | L23: 0 | M23: 0.00% | N23: 0 | O23: 0.00% | P23: 0
A24: 冶金工程科 | B24: 34 | C24: 0 | D24: 0 | E24: 0 | F24: 0 | G24: 0 | H24: 0 | I24: 0 | J24: 0 | K24: 0 | L24: 0 | M24: 0.00% | N24: 0 | O24: 0.00% | P24: 0
A25: 農藝科 | B25: 101 | C25: 0 | D25: 0 | E25: 0 | F25: 0 | G25: 0 | H25: 0 | I25: 0 | J25: 0 | K25: 0 | L25: 0 | M25: 0.00% | N25: 0 | O25: 0.00% | P25: 0
A26: 園藝科 | B26: 413 | C26: 2 | D26: 1 | E26: 3 | F26: 0 | G26: 0 | H26: 0 | I26: 0 | J26: 0 | K26: 0 | L26: 2 | M26: 66.67% | N26: 1 | O26: 33.33% | P26: 3
A27: 林業科 | B27: 408 | C27: 2 | D27: 0 | E27: 2 | F27: 0 | G27: 0 | H27: 0 | I27: 0 | J27: 0 | K27: 0 | L27: 2 | M27: 100.00% | N27: 0 | O27: 0.00% | P27: 2
A28: 畜牧科 | B28: 166 | C28: 0 | D28: 0 | E28: 0 | F28: 0 | G28: 0 | H28: 0 | I28: 0 | J28: 0 | K28: 0 | L28: 0 | M28: 0.00% | N28: 0 | O28: 0.00% | P28: 0
A29: 漁撈科 | B29: 79 | C29: 0 | D29: 0 | E29: 0 | F29: 0 | G29: 0 | H29: 0 | I29: 0 | J29: 0 | K29: 0 | L29: 0 | M29: 0.00% | N29: 0 | O29: 0.00% | P29: 0
A30: 水產養殖科 | B30: 326 | C30: 0 | D30: 0 | E30: 0 | F30: 0 | G30: 0 | H30: 0 | I30: 0 | J30: 0 | K30: 0 | L30: 0 | M30: 0.00% | N30: 0 | O30: 0.00% | P30: 0
A31: 水土保持科 | B31: 736 | C31: 46 | D31: 5 | E31: 51 | F31: 156 | G31: 15 | H31: 171 | I31: 0 | J31: 0 | K31: 0 | L31: 202 | M31: 90.99% | N31: 20 | O31: 9.01% | P31: 222
A32: 採礦工程科 | B32: 35 | C32: 3 | D32: 0 | E32: 3 | F32: 4 | G32: 0 | H32: 4 | I32: 0 | J32: 0 | K32: 0 | L32: 7 | M32: 100.00% | N32: 0 | O32: 0.00% | P32: 7
A33: 應用地質科 | B33: 205 | C33: 16 | D33: 0 | E33: 16 | F33: 80 | G33: 3 | H33: 83 | I33: 0 | J33: 0 | K33: 0 | L33: 96 | M33: 96.97% | N33: 3 | O33: 3.03% | P33: 99
A34: 礦業安全科 | B34: 31 | C34: 1 | D34: 0 | E34: 1 | F34: 0 | G34: 0 | H34: 0 | I34: 0 | J34: 0 | K34: 0 | L34: 1 | M34: 100.00% | N34: 0 | O34: 0.00% | P34: 1
A35: 交通工程科 | B35: 288 | C35: 6 | D35: 3 | E35: 9 | F35: 62 | G35: 12 | H35: 74 | I35: 0 | J35: 0 | K35: 0 | L35: 68 | M35: 81.93% | N35: 15 | O35: 18.07% | P35: 83
A36: 職業衛生科 | B36: 0 | C36: 0 | D36: 0 | E36: 0 | F36: 0 | G36: 0 | H36: 0 | I36: 0 | J36: 0 | K36: 0 | L36: 0 | M36: 0.00% | N36: 0 | O36: 0.00% | P36: 0
A37: 資料來源：技術處
A38: 備註： 1.性別資料使用：因傳統思維導致女性背負家庭義務與責任較重、認為女性不適合工程領域、不友善工作環境及刻版印象等原因，造成女性技師所占比例極為少數。 2.應用深化：鼓勵各技師公會或各工程技術顧問商業同業公會等團體舉辦相關活動時，增加性別平權課程，期能藉由「加強宣導性別平等」之觀念，營造尊重女性之友善工作環境，增加女性進入工程領域。 3.未進行國際性別統計比較原因說明：查各國對於技師之資格取得、業務分科、內容規定及限制不盡相同，缺乏共通性標準，且技師個人相關資訊取得不易，變動性亦大，欲進行國際上執業技師之性別比較實有困難。 4.執業技師有同時登記多科別技師證書之情形，經統計截至106年底有效執業技師人數為3,830人，其中女性佔212人。

Sheet 105年
A1: 各科執業技師人數統計(資料截止日期: 105年12月31日)
P2: 表22
A3: 執業 方式 | B3: 領有技師證書人數 | C3: 單獨設立或與其他技師組織聯合技師事務所之執業人數 | F3: 組織或受聘於工程技術顧問公司之執業人數 | I3: 受聘於前款以外依法令規定必需聘用領有執業執照之技師之營利事業或機構之執業人數 | L3: 前三項合計
A4: 科別 | C4: 男 | D4: 女 | E4: 小計 | F4: 男 | G4: 女 | H4: 小計 | I4: 男 | J4: 女 | K4: 小計 | L4: 男 | M4: 比例 | N4: 女 | O4: 比例 | P4: 小計
A5: 土木工程科 | B5: 9,289 | C5: 253 | D5: 6 | E5: =SUM(C5:D5) -> 259 | F5: 910 | G5: 15 | H5: =SUM(F5:G5) -> 925 | I5: 0 | J5: 0 | K5: =SUM(I5:J5) -> 0 | L5: =SUM(C5,F5,I5) -> 1,163 | M5: =L5/P5 -> 98.23% | N5: =SUM(D5,G5,J5) -> 21 | O5: =N5/P5 -> 1.77% | P5: =SUM(L5,N5) -> 1,184
A6: 水利工程科 | B6: 1,267 | C6: 21 | D6: 0 | E6: =SUM(C6:D6) -> 21 | F6: 209 | G6: 6 | H6: =SUM(F6:G6) -> 215 | I6: 0 | J6: 0 | K6: =SUM(I6:J6) -> 0 | L6: =SUM(C6,F6,I6) -> 230 | M6: =L6/P6 -> 97.46% | N6: =SUM(D6,G6,J6) -> 6 | O6: =N6/P6 -> 2.54% | P6: =SUM(L6,N6) -> 236
A7: 結構工程科 | B7: 1,686 | C7: 228 | D7: 7 | E7: 235 | F7: 301 | G7: 13 | H7: 314 | I7: 0 | J7: 0 | K7: 0 | L7: 529 | M7: 96.36% | N7: 20 | O7: 3.64% | P7: 549
A8: 大地工程科 | B8: 890 | C8: 57 | D8: 0 | E8: 57 | F8: 246 | G8: 3 | H8: 249 | I8: 0 | J8: 0 | K8: 0 | L8: 303 | M8: 99.02% | N8: 3 | O8: 0.98% | P8: 306
A9: 測量科 | B9: 430 | C9: 3 | D9: 0 | E9: 3 | F9: 70 | G9: 3 | H9: 73 | I9: 71 | J9: 0 | K9: 71 | L9: 144 | M9: 97.96% | N9: 3 | O9: 2.04% | P9: 147
A10: 環境工程科 | B10: 1,934 | C10: 82 | D10: 8 | E10: 90 | F10: 261 | G10: 31 | H10: 292 | I10: 0 | J10: 0 | K10: 0 | L10: 343 | M10: 89.79% | N10: 39 | O10: 10.21% | P10: 382
A11: 都市計畫科 | B11: 876 | C11: 24 | D11: 4 | E11: 28 | F11: 137 | G11: 69 | H11: 206 | I11: 0 | J11: 0 | K11: 0 | L11: 161 | M11: 68.80% | N11: 73 | O11: 31.20% | P11: 234
A12: 機械工程科 | B12: 670 | C12: 25 | D12: 0 | E12: 25 | F12: 31 | G12: 0 | H12: 31 | I12: 0 | J12: 0 | K12: 0 | L12: 56 | M12: 100.00% | N12: 0 | O12: 0.00% | P12: 56
A13: 冷凍空調工程科 | B13: 702 | C13: 120 | D13: 0 | E13: 120 | F13: 125 | G13: 1 | H13: 126 | I13: 0 | J13: 0 | K13: 0 | L13: 245 | M13: 99.59% | N13: 1 | O13: 0.41% | P13: 246
A14: 造船工程科 | B14: 38 | C14: 10 | D14: 0 | E14: 10 | F14: 0 | G14: 0 | H14: 0 | I14: 0 | J14: 0 | K14: 0 | L14: 10 | M14: 100.00% | N14: 0 | O14: 0.00% | P14: 10
A15: 電機工程科 | B15: 2,235 | C15: 294 | D15: 0 | E15: 294 | F15: 131 | G15: 0 | H15: 131 | I15: 0 | J15: 0 | K15: 0 | L15: 425 | M15: 100.00% | N15: 0 | O15: 0.00% | P15: 425
A16: 電子工程科 | B16: 200 | C16: 2 | D16: 0 | E16: 2 | F16: 3 | G16: 0 | H16: 3 | I16: 0 | J16: 0 | K16: 0 | L16: 5 | M16: 100.00% | N16: 0 | O16: 0.00% | P16: 5
A17: 資訊科 | B17: 223 | C17: 0 | D17: 0 | E17: 0 | F17: 0 | G17: 0 | H17: 0 | I17: 0 | J17: 0 | K17: 0 | L17: 0 | M17: 0.00% | N17: 0 | O17: 0.00% | P17: 0
A18: 航空工程科 | B18: 157 | C18: 0 | D18: 0 | E18: 0 | F18: 0 | G18: 0 | H18: 0 | I18: 0 | J18: 0 | K18: 0 | L18: 0 | M18: 0.00% | N18: 0 | O18: 0.00% | P18: 0
A19: 化學工程科 | B19: 176 | C19: 1 | D19: 0 | E19: 1 | F19: 7 | G19: 0 | H19: 7 | I19: 0 | J19: 0 | K19: 0 | L19: 8 | M19: 100.00% | N19: 0 | O19: 0.00% | P19: 8
A20: 工業工程科 | B20: 91 | C20: 0 | D20: 0 | E20: 0 | F20: 1 | G20: 0 | H20: 1 | I20: 0 | J20: 0 | K20: 0 | L20: 1 | M20: 100.00% | N20: 0 | O20: 0.00% | P20: 1
A21: 工業安全科 | B21: 477 | C21: 35 | D21: 2 | E21: 37 | F21: 1 | G21: 0 | H21: 1 | I21: 0 | J21: 0 | K21: 0 | L21: 36 | M21: 94.74% | N21: 2 | O21: 5.26% | P21: 38
A22: 紡織工程科 | B22: 63 | C22: 1 | D22: 0 | E22: 1 | F22: 0 | G22: 0 | H22: 0 | I22: 0 | J22: 0 | K22: 0 | L22: 1 | M22: 100.00% | N22: 0 | O22: 0.00% | P22: 1
A23: 食品科 | B23: 1,673 | C23: 0 | D23: 0 | E23: 0 | F23: 0 | G23: 0 | H23: 0 | I23: 0 | J23: 0 | K23: 0 | L23: 0 | M23: 0.00% | N23: 0 | O23: 0.00% | P23: 0
A24: 冶金工程科 | B24: 33 | C24: 0 | D24: 0 | E24: 0 | F24: 0 | G24: 0 | H24: 0 | I24: 0 | J24: 0 | K24: 0 | L24: 0 | M24: 0.00% | N24: 0 | O24: 0.00% | P24: 0
A25: 農藝科 | B25: 100 | C25: 0 | D25: 0 | E25: 0 | F25: 0 | G25: 0 | H25: 0 | I25: 0 | J25: 0 | K25: 0 | L25: 0 | M25: 0.00% | N25: 0 | O25: 0.00% | P25: 0
A26: 園藝科 | B26: 402 | C26: 2 | D26: 1 | E26: 3 | F26: 0 | G26: 0 | H26: 0 | I26: 0 | J26: 0 | K26: 0 | L26: 2 | M26: 66.67% | N26: 1 | O26: 33.33% | P26: 3
A27: 林業科 | B27: 393 | C27: 2 | D27: 0 | E27: 2 | F27: 0 | G27: 0 | H27: 0 | I27: 0 | J27: 0 | K27: 0 | L27: 2 | M27: 100.00% | N27: 0 | O27: 0.00% | P27: 2
A28: 畜牧科 | B28: 163 | C28: 0 | D28: 0 | E28: 0 | F28: 0 | G28: 0 | H28: 0 | I28: 0 | J28: 0 | K28: 0 | L28: 0 | M28: 0.00% | N28: 0 | O28: 0.00% | P28: 0
A29: 漁撈科 | B29: 78 | C29: 0 | D29: 0 | E29: 0 | F29: 0 | G29: 0 | H29: 0 | I29: 0 | J29: 0 | K29: 0 | L29: 0 | M29: 0.00% | N29: 0 | O29: 0.00% | P29: 0
A30: 水產養殖科 | B30: 320 | C30: 0 | D30: 0 | E30: 0 | F30: 0 | G30: 0 | H30: 0 | I30: 0 | J30: 0 | K30: 0 | L30: 0 | M30: 0.00% | N30: 0 | O30: 0.00% | P30: 0
A31: 水土保持科 | B31: 693 | C31: 36 | D31: 2 | E31: 38 | F31: 144 | G31: 12 | H31: 156 | I31: 0 | J31: 0 | K31: 0 | L31: 180 | M31: 92.78% | N31: 14 | O31: 7.22% | P31: 194
A32: 採礦工程科 | B32: 33 | C32: 3 | D32: 0 | E32: 3 | F32: 4 | G32: 0 | H32: 4 | I32: 0 | J32: 0 | K32: 0 | L32: 7 | M32: 100.00% | N32: 0 | O32: 0.00% | P32: 7
A33: 應用地質科 | B33: 195 | C33: 16 | D33: 0 | E33: 16 | F33: 73 | G33: 2 | H33: 75 | I33: 0 | J33: 0 | K33: 0 | L33: 89 | M33: 97.80% | N33: 2 | O33: 2.20% | P33: 91
A34: 礦業安全科 | B34: 31 | C34: 1 | D34: 0 | E34: 1 | F34: 0 | G34: 0 | H34: 0 | I34: 0 | J34: 0 | K34: 0 | L34: 1 | M34: 100.00% | N34: 0 | O34: 0.00% | P34: 1
A35: 交通工程科 | B35: 276 | C35: 6 | D35: 4 | E35: 10 | F35: 58 | G35: 11 | H35: 69 | I35: 0 | J35: 0 | K35: 0 | L35: 64 | M35: 81.01% | N35: 15 | O35: 18.99% | P35: 79
A36: 職業衛生科 | B36: 0 | C36: 0 | D36: 0 | E36: 0 | F36: 0 | G36: 0 | H36: 0 | I36: 0 | J36: 0 | K36: 0 | L36: 0 | M36: 0.00% | N36: 0 | O36: 0.00% | P36: 0
A37: 資料來源：技術處

Sheet 104年
A1: 各科執業技師人數統計(資料截止日期: 104年12月31日)
P2: 表22
A3: 執業 方式 | B3: 領有技師證書人數 | C3: 單獨設立或與其他技師組織聯合技師事務所之執業人數 | F3: 組織或受聘於工程技術顧問公司之執業人數 | I3: 受聘於前款以外依法令規定必需聘用領有執業執照之技師之營利事業或機構之執業人數 | L3: 前三項合計
A4: 科別 | C4: 男 | D4: 女 | E4: 小計 | F4: 男 | G4: 女 | H4: 小計 | I4: 男 | J4: 女 | K4: 小計 | L4: 男 | M4: 比例 | N4: 女 | O4: 比例 | P4: 小計
A5: 土木工程科 | B5: 8,933 | C5: 239 | D5: 7 | E5: =SUM(C5:D5) -> 246 | F5: 904 | G5: 18 | H5: =SUM(F5:G5) -> 922 | I5: 0 | J5: 0 | K5: =SUM(I5:J5) -> 0 | L5: =SUM(C5,F5,I5) -> 1,143 | M5: =L5/P5 -> 97.86% | N5: =SUM(D5,G5,J5) -> 25 | O5: =N5/P5 -> 2.14% | P5: =SUM(L5,N5) -> 1,168
A6: 水利工程科 | B6: 1,196 | C6: 19 | D6: 0 | E6: =SUM(C6:D6) -> 19 | F6: 200 | G6: 5 | H6: =SUM(F6:G6) -> 205 | I6: 0 | J6: 0 | K6: =SUM(I6:J6) -> 0 | L6: =SUM(C6,F6,I6) -> 219 | M6: =L6/P6 -> 97.77% | N6: =SUM(D6,G6,J6) -> 5 | O6: =N6/P6 -> 2.23% | P6: =SUM(L6,N6) -> 224
A7: 結構工程科 | B7: 1,647 | C7: 223 | D7: 10 | E7: 233 | F7: 295 | G7: 10 | H7: 305 | I7: 0 | J7: 0 | K7: 0 | L7: 518 | M7: 96.28% | N7: 20 | O7: 3.72% | P7: 538
A8: 大地工程科 | B8: 860 | C8: 52 | D8: 0 | E8: 52 | F8: 239 | G8: 2 | H8: 241 | I8: 0 | J8: 0 | K8: 0 | L8: 291 | M8: 99.32% | N8: 2 | O8: 0.68% | P8: 293
A9: 測量科 | B9: 420 | C9: 3 | D9: 0 | E9: 3 | F9: 71 | G9: 3 | H9: 74 | I9: 68 | J9: 0 | K9: 68 | L9: 142 | M9: 97.93% | N9: 3 | O9: 2.07% | P9: 145
A10: 環境工程科 | B10: 1,899 | C10: 84 | D10: 8 | E10: 92 | F10: 260 | G10: 28 | H10: 288 | I10: 0 | J10: 0 | K10: 0 | L10: 344 | M10: 90.53% | N10: 36 | O10: 9.47% | P10: 380
A11: 都市計畫科 | B11: 846 | C11: 24 | D11: 4 | E11: 28 | F11: 134 | G11: 69 | H11: 203 | I11: 0 | J11: 0 | K11: 0 | L11: 158 | M11: 68.40% | N11: 73 | O11: 31.60% | P11: 231
A12: 機械工程科 | B12: 657 | C12: 27 | D12: 0 | E12: 27 | F12: 32 | G12: 0 | H12: 32 | I12: 0 | J12: 0 | K12: 0 | L12: 59 | M12: 100.00% | N12: 0 | O12: 0.00% | P12: 59
A13: 冷凍空調工程科 | B13: 678 | C13: 111 | D13: 0 | E13: 111 | F13: 119 | G13: 0 | H13: 119 | I13: 0 | J13: 0 | K13: 0 | L13: 230 | M13: 100.00% | N13: 0 | O13: 0.00% | P13: 230
A14: 造船工程科 | B14: 38 | C14: 10 | D14: 0 | E14: 10 | F14: 0 | G14: 0 | H14: 0 | I14: 0 | J14: 0 | K14: 0 | L14: 10 | M14: 100.00% | N14: 0 | O14: 0.00% | P14: 10
A15: 電機工程科 | B15: 2,203 | C15: 291 | D15: 0 | E15: 291 | F15: 122 | G15: 0 | H15: 122 | I15: 0 | J15: 0 | K15: 0 | L15: 413 | M15: 100.00% | N15: 0 | O15: 0.00% | P15: 413
A16: 電子工程科 | B16: 193 | C16: 1 | D16: 0 | E16: 1 | F16: 3 | G16: 0 | H16: 3 | I16: 0 | J16: 0 | K16: 0 | L16: 4 | M16: 100.00% | N16: 0 | O16: 0.00% | P16: 4
A17: 資訊科 | B17: 221 | C17: 0 | D17: 0 | E17: 0 | F17: 0 | G17: 0 | H17: 0 | I17: 0 | J17: 0 | K17: 0 | L17: 0 | M17: 0.00% | N17: 0 | O17: 0.00% | P17: 0
A18: 航空工程科 | B18: 156 | C18: 0 | D18: 0 | E18: 0 | F18: 0 | G18: 0 | H18: 0 | I18: 0 | J18: 0 | K18: 0 | L18: 0 | M18: 0.00% | N18: 0 | O18: 0.00% | P18: 0
A19: 化學工程科 | B19: 176 | C19: 1 | D19: 0 | E19: 1 | F19: 6 | G19: 0 | H19: 6 | I19: 0 | J19: 0 | K19: 0 | L19: 7 | M19: 100.00% | N19: 0 | O19: 0.00% | P19: 7
A20: 工業工程科 | B20: 91 | C20: 0 | D20: 0 | E20: 0 | F20: 1 | G20: 0 | H20: 1 | I20: 0 | J20: 0 | K20: 0 | L20: 1 | M20: 100.00% | N20: 0 | O20: 0.00% | P20: 1
A21: 工業安全科 | B21: 458 | C21: 28 | D21: 1 | E21: 29 | F21: 2 | G21: 0 | H21: 2 | I21: 0 | J21: 0 | K21: 0 | L21: 30 | M21: 96.77% | N21: 1 | O21: 3.23% | P21: 31
A22: 紡織工程科 | B22: 63 | C22: 1 | D22: 0 | E22: 1 | F22: 0 | G22: 0 | H22: 0 | I22: 0 | J22: 0 | K22: 0 | L22: 1 | M22: 100.00% | N22: 0 | O22: 0.00% | P22: 1
A23: 食品科 | B23: 1,450 | C23: 0 | D23: 0 | E23: 0 | F23: 0 | G23: 0 | H23: 0 | I23: 0 | J23: 0 | K23: 0 | L23: 0 | M23: 0.00% | N23: 0 | O23: 0.00% | P23: 0
A24: 冶金工程科 | B24: 33 | C24: 0 | D24: 0 | E24: 0 | F24: 0 | G24: 0 | H24: 0 | I24: 0 | J24: 0 | K24: 0 | L24: 0 | M24: 0.00% | N24: 0 | O24: 0.00% | P24: 0
A25: 農藝科 | B25: 97 | C25: 0 | D25: 0 | E25: 0 | F25: 0 | G25: 0 | H25: 0 | I25: 0 | J25: 0 | K25: 0 | L25: 0 | M25: 0.00% | N25: 0 | O25: 0.00% | P25: 0
A26: 園藝科 | B26: 395 | C26: 1 | D26: 1 | E26: 2 | F26: 0 | G26: 0 | H26: 0 | I26: 0 | J26: 0 | K26: 0 | L26: 1 | M26: 50.00% | N26: 1 | O26: 50.00% | P26: 2
A27: 林業科 | B27: 379 | C27: 4 | D27: 0 | E27: 4 | F27: 0 | G27: 0 | H27: 0 | I27: 0 | J27: 0 | K27: 0 | L27: 4 | M27: 100.00% | N27: 0 | O27: 0.00% | P27: 4
A28: 畜牧科 | B28: 159 | C28: 0 | D28: 0 | E28: 0 | F28: 0 | G28: 0 | H28: 0 | I28: 0 | J28: 0 | K28: 0 | L28: 0 | M28: 0.00% | N28: 0 | O28: 0.00% | P28: 0
A29: 漁撈科 | B29: 78 | C29: 0 | D29: 0 | E29: 0 | F29: 0 | G29: 0 | H29: 0 | I29: 0 | J29: 0 | K29: 0 | L29: 0 | M29: 0.00% | N29: 0 | O29: 0.00% | P29: 0
A30: 水產養殖科 | B30: 317 | C30: 0 | D30: 0 | E30: 0 | F30: 0 | G30: 0 | H30: 0 | I30: 0 | J30: 0 | K30: 0 | L30: 0 | M30: 0.00% | N30: 0 | O30: 0.00% | P30: 0
A31: 水土保持科 | B31: 647 | C31: 33 | D31: 2 | E31: 35 | F31: 126 | G31: 10 | H31: 136 | I31: 0 | J31: 0 | K31: 0 | L31: 159 | M31: 92.98% | N31: 12 | O31: 7.02% | P31: 171
A32: 採礦工程科 | B32: 31 | C32: 3 | D32: 0 | E32: 3 | F32: 4 | G32: 0 | H32: 4 | I32: 0 | J32: 0 | K32: 0 | L32: 7 | M32: 100.00% | N32: 0 | O32: 0.00% | P32: 7
A33: 應用地質科 | B33: 189 | C33: 15 | D33: 0 | E33: 15 | F33: 69 | G33: 2 | H33: 71 | I33: 0 | J33: 0 | K33: 0 | L33: 84 | M33: 97.67% | N33: 2 | O33: 2.33% | P33: 86
A34: 礦業安全科 | B34: 30 | C34: 1 | D34: 0 | E34: 1 | F34: 0 | G34: 0 | H34: 0 | I34: 0 | J34: 0 | K34: 0 | L34: 1 | M34: 100.00% | N34: 0 | O34: 0.00% | P34: 1
A35: 交通工程科 | B35: 260 | C35: 5 | D35: 2 | E35: 7 | F35: 56 | G35: 11 | H35: 67 | I35: 0 | J35: 0 | K35: 0 | L35: 61 | M35: 82.43% | N35: 13 | O35: 17.57% | P35: 74
A36: 職業衛生科 | B36: 0 | C36: 0 | D36: 0 | E36: 0 | F36: 0 | G36: 0 | H36: 0 | I36: 0 | J36: 0 | K36: 0 | L36: 0 | M36: 0.00% | N36: 0 | O36: 0.00% | P36: 0
A37: 資料來源：技術處

Sheet 103年
A1: 各科執業技師人數統計(資料截止日期: 103年12月31日)
P2: 表22
A3: 執業 方式 | B3: 領有技師證書人數 | C3: 單獨設立或與其他技師組織聯合技師事務所之執業人數 | F3: 組織或受聘於工程技術顧問公司之執業人數 | I3: 受聘於前款以外依法令規定必需聘用領有執業執照之技師之營利事業或機構之執業人數 | L3: 前三項合計
A4: 科別 | C4: 男 | D4: 女 | E4: 小計 | F4: 男 | G4: 女 | H4: 小計 | I4: 男 | J4: 女 | K4: 小計 | L4: 男 | M4: 比例 | N4: 女 | O4: 比例 | P4: 小計
A5: 土木工程科 | B5: 8,604 | C5: 242 | D5: 6 | E5: =SUM(C5:D5) -> 248 | F5: 895 | G5: 15 | H5: =SUM(F5:G5) -> 910 | I5: 0 | J5: 0 | K5: =SUM(I5:J5) -> 0 | L5: =SUM(C5,F5,I5) -> 1,137 | M5: =L5/P5 -> 98.19% | N5: =SUM(D5,G5,J5) -> 21 | O5: =N5/P5 -> 1.81% | P5: =SUM(L5,N5) -> 1,158
A6: 水利工程科 | B6: 1,152 | C6: 15 | D6: 0 | E6: =SUM(C6:D6) -> 15 | F6: 193 | G6: 2 | H6: =SUM(F6:G6) -> 195 | I6: 0 | J6: 0 | K6: =SUM(I6:J6) -> 0 | L6: =SUM(C6,F6,I6) -> 208 | M6: =L6/P6 -> 99.05% | N6: =SUM(D6,G6,J6) -> 2 | O6: =N6/P6 -> 0.95% | P6: =SUM(L6,N6) -> 210
A7: 結構工程科 | B7: 1,607 | C7: 218 | D7: 9 | E7: 227 | F7: 288 | G7: 10 | H7: 298 | I7: 0 | J7: 0 | K7: 0 | L7: 506 | M7: 96.38% | N7: 19 | O7: 3.62% | P7: 525
A8: 大地工程科 | B8: 827 | C8: 48 | D8: 0 | E8: 48 | F8: 238 | G8: 3 | H8: 241 | I8: 0 | J8: 0 | K8: 0 | L8: 286 | M8: 98.96% | N8: 3 | O8: 1.04% | P8: 289
A9: 測量科 | B9: 406 | C9: 4 | D9: 0 | E9: 4 | F9: 76 | G9: 2 | H9: 78 | I9: 61 | J9: 0 | K9: 61 | L9: 141 | M9: 98.60% | N9: 2 | O9: 1.40% | P9: 143
A10: 環境工程科 | B10: 1,867 | C10: 81 | D10: 8 | E10: 89 | F10: 255 | G10: 29 | H10: 284 | I10: 0 | J10: 0 | K10: 0 | L10: 336 | M10: 90.08% | N10: 37 | O10: 9.92% | P10: 373
A11: 都市計畫科 | B11: 817 | C11: 20 | D11: 6 | E11: 26 | F11: 129 | G11: 60 | H11: 189 | I11: 0 | J11: 0 | K11: 0 | L11: 149 | M11: 69.30% | N11: 66 | O11: 30.70% | P11: 215
A12: 機械工程科 | B12: 654 | C12: 26 | D12: 0 | E12: 26 | F12: 31 | G12: 0 | H12: 31 | I12: 0 | J12: 0 | K12: 0 | L12: 57 | M12: 100.00% | N12: 0 | O12: 0.00% | P12: 57
A13: 冷凍空調工程科 | B13: 651 | C13: 105 | D13: 0 | E13: 105 | F13: 110 | G13: 0 | H13: 110 | I13: 0 | J13: 0 | K13: 0 | L13: 215 | M13: 100.00% | N13: 0 | O13: 0.00% | P13: 215
A14: 造船工程科 | B14: 37 | C14: 11 | D14: 0 | E14: 11 | F14: 0 | G14: 0 | H14: 0 | I14: 0 | J14: 0 | K14: 0 | L14: 11 | M14: 100.00% | N14: 0 | O14: 0.00% | P14: 11
A15: 電機工程科 | B15: 2,171 | C15: 290 | D15: 0 | E15: 290 | F15: 124 | G15: 0 | H15: 124 | I15: 0 | J15: 0 | K15: 0 | L15: 414 | M15: 100.00% | N15: 0 | O15: 0.00% | P15: 414
A16: 電子工程科 | B16: 188 | C16: 1 | D16: 0 | E16: 1 | F16: 3 | G16: 0 | H16: 3 | I16: 0 | J16: 0 | K16: 0 | L16: 4 | M16: 100.00% | N16: 0 | O16: 0.00% | P16: 4
A17: 資訊科 | B17: 218 | C17: 0 | D17: 0 | E17: 0 | F17: 0 | G17: 0 | H17: 0 | I17: 0 | J17: 0 | K17: 0 | L17: 0 | M17: 0.00% | N17: 0 | O17: 0.00% | P17: 0
A18: 航空工程科 | B18: 156 | C18: 1 | D18: 0 | E18: 1 | F18: 0 | G18: 0 | H18: 0 | I18: 0 | J18: 0 | K18: 0 | L18: 1 | M18: 100.00% | N18: 0 | O18: 0.00% | P18: 1
A19: 化學工程科 | B19: 175 | C19: 1 | D19: 0 | E19: 1 | F19: 7 | G19: 0 | H19: 7 | I19: 0 | J19: 0 | K19: 0 | L19: 8 | M19: 100.00% | N19: 0 | O19: 0.00% | P19: 8
A20: 工業工程科 | B20: 91 | C20: 0 | D20: 0 | E20: 0 | F20: 1 | G20: 0 | H20: 1 | I20: 0 | J20: 0 | K20: 0 | L20: 1 | M20: 100.00% | N20: 0 | O20: 0.00% | P20: 1
A21: 工業安全科 | B21: 438 | C21: 30 | D21: 1 | E21: 31 | F21: 2 | G21: 0 | H21: 2 | I21: 0 | J21: 0 | K21: 0 | L21: 32 | M21: 96.97% | N21: 1 | O21: 3.03% | P21: 33
A22: 紡織工程科 | B22: 62 | C22: 1 | D22: 0 | E22: 1 | F22: 0 | G22: 0 | H22: 0 | I22: 0 | J22: 0 | K22: 0 | L22: 1 | M22: 100.00% | N22: 0 | O22: 0.00% | P22: 1
A23: 食品科 | B23: 1,187 | C23: 0 | D23: 0 | E23: 0 | F23: 0 | G23: 0 | H23: 0 | I23: 0 | J23: 0 | K23: 0 | L23: 0 | M23: 0.00% | N23: 0 | O23: 0.00% | P23: 0
A24: 冶金工程科 | B24: 31 | C24: 0 | D24: 0 | E24: 0 | F24: 0 | G24: 0 | H24: 0 | I24: 0 | J24: 0 | K24: 0 | L24: 0 | M24: 0.00% | N24: 0 | O24: 0.00% | P24: 0
A25: 農藝科 | B25: 92 | C25: 0 | D25: 0 | E25: 0 | F25: 0 | G25: 0 | H25: 0 | I25: 0 | J25: 0 | K25: 0 | L25: 0 | M25: 0.00% | N25: 0 | O25: 0.00% | P25: 0
A26: 園藝科 | B26: 384 | C26: 1 | D26: 0 | E26: 1 | F26: 0 | G26: 0 | H26: 0 | I26: 0 | J26: 0 | K26: 0 | L26: 1 | M26: 100.00% | N26: 0 | O26: 0.00% | P26: 1
A27: 林業科 | B27: 363 | C27: 3 | D27: 0 | E27: 3 | F27: 0 | G27: 0 | H27: 0 | I27: 0 | J27: 0 | K27: 0 | L27: 3 | M27: 100.00% | N27: 0 | O27: 0.00% | P27: 3
A28: 畜牧科 | B28: 153 | C28: 0 | D28: 0 | E28: 0 | F28: 0 | G28: 0 | H28: 0 | I28: 0 | J28: 0 | K28: 0 | L28: 0 | M28: 0.00% | N28: 0 | O28: 0.00% | P28: 0
A29: 漁撈科 | B29: 76 | C29: 0 | D29: 0 | E29: 0 | F29: 0 | G29: 0 | H29: 0 | I29: 0 | J29: 0 | K29: 0 | L29: 0 | M29: 0.00% | N29: 0 | O29: 0.00% | P29: 0
A30: 水產養殖科 | B30: 312 | C30: 0 | D30: 0 | E30: 0 | F30: 0 | G30: 0 | H30: 0 | I30: 0 | J30: 0 | K30: 0 | L30: 0 | M30: 0.00% | N30: 0 | O30: 0.00% | P30: 0
A31: 水土保持科 | B31: 604 | C31: 33 | D31: 2 | E31: 35 | F31: 117 | G31: 11 | H31: 128 | I31: 0 | J31: 0 | K31: 0 | L31: 150 | M31: 92.02% | N31: 13 | O31: 7.98% | P31: 163
A32: 採礦工程科 | B32: 31 | C32: 3 | D32: 0 | E32: 3 | F32: 4 | G32: 0 | H32: 4 | I32: 0 | J32: 0 | K32: 0 | L32: 7 | M32: 100.00% | N32: 0 | O32: 0.00% | P32: 7
A33: 應用地質科 | B33: 181 | C33: 14 | D33: 0 | E33: 14 | F33: 69 | G33: 2 | H33: 71 | I33: 0 | J33: 0 | K33: 0 | L33: 83 | M33: 97.65% | N33: 2 | O33: 2.35% | P33: 85
A34: 礦業安全科 | B34: 30 | C34: 1 | D34: 0 | E34: 1 | F34: 0 | G34: 0 | H34: 0 | I34: 0 | J34: 0 | K34: 0 | L34: 1 | M34: 100.00% | N34: 0 | O34: 0.00% | P34: 1
A35: 交通工程科 | B35: 253 | C35: 4 | D35: 2 | E35: 6 | F35: 52 | G35: 10 | H35: 62 | I35: 0 | J35: 0 | K35: 0 | L35: 56 | M35: 82.35% | N35: 12 | O35: 17.65% | P35: 68
A36: 職業衛生科 | B36: 0 | C36: 0 | D36: 0 | E36: 0 | F36: 0 | G36: 0 | H36: 0 | I36: 0 | J36: 0 | K36: 0 | L36: 0 | M36: 0.00% | N36: 0 | O36: 0.00% | P36: 0
A37: 資料來源：技術處

Sheet 102年
A1: 各科執業技師人數統計(資料截止日期: 102年12月31日)
P2: 表22
A3: 執業 方式 | B3: 領有技師證書人數 | C3: 單獨設立或與其他技師組織聯合技師事務所之執業人數 | F3: 組織或受聘於工程技術顧問公司之執業人數 | I3: 受聘於前款以外依法令規定必需聘用領有執業執照之技師之營利事業或機構之執業人數 | L3: 前三項合計
A4: 科別 | C4: 男 | D4: 女 | E4: 小計 | F4: 男 | G4: 女 | H4: 小計 | I4: 男 | J4: 女 | K4: 小計 | L4: 男 | M4: 比例 | N4: 女 | O4: 比例 | P4: 小計
A5: 土木工程科 | B5: 8,258 | C5: 237 | D5: 7 | E5: =SUM(C5:D5) -> 244 | F5: 898 | G5: 12 | H5: =SUM(F5:G5) -> 910 | I5: 0 | J5: 0 | K5: =SUM(I5:J5) -> 0 | L5: =SUM(C5,F5,I5) -> 1,135 | M5: =L5/P5 -> 98.35% | N5: =SUM(D5,G5,J5) -> 19 | O5: =N5/P5 -> 1.65% | P5: =SUM(L5,N5) -> 1,154
A6: 水利工程科 | B6: 1,104 | C6: 17 | D6: 0 | E6: =SUM(C6:D6) -> 17 | F6: 186 | G6: 3 | H6: =SUM(F6:G6) -> 189 | I6: 0 | J6: 0 | K6: =SUM(I6:J6) -> 0 | L6: =SUM(C6,F6,I6) -> 203 | M6: =L6/P6 -> 98.54% | N6: =SUM(D6,G6,J6) -> 3 | O6: =N6/P6 -> 1.46% | P6: =SUM(L6,N6) -> 206
A7: 結構工程科 | B7: 1,558 | C7: 222 | D7: 7 | E7: 229 | F7: 276 | G7: 11 | H7: 287 | I7: 0 | J7: 0 | K7: 0 | L7: 498 | M7: 96.51% | N7: 18 | O7: 3.49% | P7: 516
A8: 大地工程科 | B8: 787 | C8: 46 | D8: 0 | E8: 46 | F8: 234 | G8: 3 | H8: 237 | I8: 0 | J8: 0 | K8: 0 | L8: 280 | M8: 98.94% | N8: 3 | O8: 1.06% | P8: 283
A9: 測量科 | B9: 384 | C9: 4 | D9: 0 | E9: 4 | F9: 73 | G9: 1 | H9: 74 | I9: 55 | J9: 0 | K9: 55 | L9: 132 | M9: 99.25% | N9: 1 | O9: 0.75% | P9: 133
A10: 環境工程科 | B10: 1,839 | C10: 80 | D10: 8 | E10: 88 | F10: 259 | G10: 28 | H10: 287 | I10: 0 | J10: 0 | K10: 0 | L10: 339 | M10: 90.40% | N10: 36 | O10: 9.60% | P10: 375
A11: 都市計畫科 | B11: 781 | C11: 20 | D11: 4 | E11: 24 | F11: 121 | G11: 56 | H11: 177 | I11: 0 | J11: 0 | K11: 0 | L11: 141 | M11: 70.15% | N11: 60 | O11: 29.85% | P11: 201
A12: 機械工程科 | B12: 647 | C12: 28 | D12: 0 | E12: 28 | F12: 31 | G12: 0 | H12: 31 | I12: 0 | J12: 0 | K12: 0 | L12: 59 | M12: 100.00% | N12: 0 | O12: 0.00% | P12: 59
A13: 冷凍空調工程科 | B13: 628 | C13: 98 | D13: 0 | E13: 98 | F13: 107 | G13: 0 | H13: 107 | I13: 0 | J13: 0 | K13: 0 | L13: =SUM(C13,F13,I13) -> 205 | M13: 100.00% | N13: 0 | O13: 0.00% | P13: 205
A14: 造船工程科 | B14: 37 | C14: 9 | D14: 0 | E14: 9 | F14: 0 | G14: 0 | H14: 0 | I14: 0 | J14: 0 | K14: 0 | L14: 9 | M14: 100.00% | N14: 0 | O14: 0.00% | P14: 9
A15: 電機工程科 | B15: 2,137 | C15: 297 | D15: 0 | E15: 297 | F15: 114 | G15: 0 | H15: 114 | J15: 0 | K15: 0 | L15: 411 | M15: 100.00% | N15: 0 | O15: 0.00% | P15: 411
A16: 電子工程科 | B16: 184 | C16: 0 | D16: 0 | E16: 0 | F16: 3 | G16: 0 | H16: 3 | I16: 0 | J16: 0 | K16: 0 | L16: 3 | M16: 100.00% | N16: 0 | O16: 0.00% | P16: 3
A17: 資訊科 | B17: 212 | C17: 0 | D17: 0 | E17: 0 | F17: 0 | G17: 0 | H17: 0 | I17: 0 | J17: 0 | K17: 0 | L17: 0 | M17: 0.00% | N17: 0 | O17: 0.00% | P17: 0
A18: 航空工程科 | B18: 156 | C18: 1 | D18: 0 | E18: 1 | F18: 0 | G18: 0 | H18: 0 | I18: 0 | J18: 0 | K18: 0 | L18: 1 | M18: 100.00% | N18: 0 | O18: 0.00% | P18: 1
A19: 化學工程科 | B19: 174 | C19: 1 | D19: 0 | E19: 1 | F19: 8 | G19: 0 | H19: 8 | I19: 0 | J19: 0 | K19: 0 | L19: 9 | M19: 100.00% | N19: 0 | O19: 0.00% | P19: 9
A20: 工業工程科 | B20: 90 | C20: 0 | D20: 0 | E20: 0 | F20: 1 | G20: 0 | H20: 1 | I20: 0 | J20: 0 | K20: 0 | L20: 1 | M20: 100.00% | N20: 0 | O20: 0.00% | P20: 1
A21: 工業安全科 | B21: 425 | C21: 28 | D21: 0 | E21: 28 | F21: 2 | G21: 0 | H21: 2 | I21: 0 | J21: 0 | K21: 0 | L21: 30 | M21: 100.00% | N21: 0 | O21: 0.00% | P21: 30
A22: 紡織工程科 | B22: 62 | C22: 1 | D22: 0 | E22: 1 | F22: 0 | G22: 0 | H22: 0 | I22: 0 | J22: 0 | K22: 0 | L22: 1 | M22: 100.00% | N22: 0 | O22: 0.00% | P22: 1
A23: 食品科 | B23: 853 | C23: 0 | D23: 1 | E23: 1 | F23: 0 | G23: 0 | H23: 0 | I23: 0 | J23: 0 | K23: 0 | L23: 0 | M23: 0.00% | N23: 1 | O23: 100.00% | P23: 1
A24: 冶金工程科 | B24: 31 | C24: 0 | D24: 0 | E24: 0 | F24: 0 | G24: 0 | H24: 0 | I24: 0 | J24: 0 | K24: 0 | L24: 0 | M24: 0.00% | N24: 0 | O24: 0.00% | P24: 0
A25: 農藝科 | B25: 92 | C25: 0 | D25: 0 | E25: 0 | F25: 0 | G25: 0 | H25: 0 | I25: 0 | J25: 0 | K25: 0 | L25: 0 | M25: 0.00% | N25: 0 | O25: 0.00% | P25: 0
A26: 園藝科 | B26: 380 | C26: 1 | D26: 0 | E26: 1 | F26: 0 | G26: 0 | H26: 0 | I26: 0 | J26: 0 | K26: 0 | L26: 1 | M26: 100.00% | N26: 0 | O26: 0.00% | P26: 1
A27: 林業科 | B27: 353 | C27: 5 | D27: 0 | E27: 5 | F27: 0 | G27: 0 | H27: 0 | I27: 0 | J27: 0 | K27: 0 | L27: 5 | M27: 100.00% | N27: 0 | O27: 0.00% | P27: 5
A28: 畜牧科 | B28: 151 | C28: 0 | D28: 0 | E28: 0 | F28: 0 | G28: 0 | H28: 0 | I28: 0 | J28: 0 | K28: 0 | L28: 0 | M28: 0.00% | N28: 0 | O28: 0.00% | P28: 0
A29: 漁撈科 | B29: 76 | C29: 0 | D29: 0 | E29: 0 | F29: 0 | G29: 0 | H29: 0 | I29: 0 | J29: 0 | K29: 0 | L29: 0 | M29: 0.00% | N29: 0 | O29: 0.00% | P29: 0
A30: 水產養殖科 | B30: 309 | C30: 0 | D30: 0 | E30: 0 | F30: 0 | G30: 0 | H30: 0 | I30: 0 | J30: 0 | K30: 0 | L30: 0 | M30: 0.00% | N30: 0 | O30: 0.00% | P30: 0
A31: 水土保持科 | B31: 561 | C31: 33 | D31: 2 | E31: 35 | F31: 108 | G31: 10 | H31: 118 | I31: 0 | J31: 0 | K31: 0 | L31: 141 | M31: 92.16% | N31: 12 | O31: 7.84% | P31: 153
A32: 採礦工程科 | B32: 30 | C32: 3 | D32: 0 | E32: 3 | F32: 4 | G32: 0 | H32: 4 | I32: 0 | J32: 0 | K32: 0 | L32: 7 | M32: 100.00% | N32: 0 | O32: 0.00% | P32: 7
A33: 應用地質科 | B33: 178 | C33: 12 | D33: 0 | E33: 12 | F33: 75 | G33: 2 | H33: 77 | I33: 0 | J33: 0 | K33: 0 | L33: 87 | M33: 97.75% | N33: 2 | O33: 2.25% | P33: 89
A34: 礦業安全科 | B34: 30 | C34: 1 | D34: 0 | E34: 1 | F34: 0 | G34: 0 | H34: 0 | I34: 0 | J34: 0 | K34: 0 | L34: 1 | M34: 100.00% | N34: 0 | O34: 0.00% | P34: 1
A35: 交通工程科 | B35: 238 | C35: 5 | D35: 2 | E35: 7 | F35: 46 | G35: 11 | H35: 57 | I35: 0 | J35: 0 | K35: 0 | L35: 51 | M35: 79.69% | N35: 13 | O35: 20.31% | P35: 64
A36: 職業衛生科 | B36: 0 | C36: 0 | D36: 0 | E36: 0 | F36: 0 | G36: 0 | H36: 0 | I36: 0 | J36: 0 | K36: 0 | L36: 0 | M36: 0.00% | N36: 0 | O36: 0.00% | P36: 0
A37: 資料來源：技術處

Sheet 101年
A1: 各科執業技師人數統計(資料截止日期: 101年12月31日)
P2: 表22
A3: 執業 方式 | B3: 領有技師證書人數 | C3: 單獨設立或與其他技師組織聯合技師事務所之執業人數 | F3: 組織或受聘於工程技術顧問公司之執業人數 | I3: 受聘於前款以外依法令規定必需聘用領有執業執照之技師之營利事業或機構之執業人數 | L3: 前三項合計
A4: 科別 | C4: 男 | D4: 女 | E4: 小計 | F4: 男 | G4: 女 | H4: 小計 | I4: 男 | J4: 女 | K4: 小計 | L4: 男 | M4: 比例 | N4: 女 | O4: 比例 | P4: 小計
A5: 土木工程科 | B5: 7,898 | C5: 240 | D5: 7 | E5: =SUM(C5:D5) -> 247 | F5: 888 | G5: 11 | H5: =SUM(F5:G5) -> 899 | I5: 0 | J5: 0 | K5: =SUM(I5:J5) -> 0 | L5: =SUM(C5,F5,I5) -> 1,128 | M5: =L5/P5 -> 98.43% | N5: =SUM(D5,G5,J5) -> 18 | O5: =N5/P5 -> 1.57% | P5: =SUM(L5,N5) -> 1,146
A6: 水利工程科 | B6: 1,054 | C6: 16 | D6: 0 | E6: =SUM(C6:D6) -> 16 | F6: 179 | G6: 3 | H6: =SUM(F6:G6) -> 182 | I6: 0 | J6: 0 | K6: =SUM(I6:J6) -> 0 | L6: =SUM(C6,F6,I6) -> 195 | M6: =L6/P6 -> 98.48% | N6: =SUM(D6,G6,J6) -> 3 | O6: =N6/P6 -> 1.52% | P6: =SUM(L6,N6) -> 198
A7: 結構工程科 | B7: 1,520 | C7: 218 | D7: 7 | E7: 225 | F7: 272 | G7: 10 | H7: 282 | I7: 0 | J7: 0 | K7: 0 | L7: 490 | M7: 96.65% | N7: 17 | O7: 3.35% | P7: 507
A8: 大地工程科 | B8: 754 | C8: 50 | D8: 0 | E8: 50 | F8: 222 | G8: 3 | H8: 225 | I8: 0 | J8: 0 | K8: 0 | L8: 272 | M8: 98.91% | N8: 3 | O8: 1.09% | P8: 275
A9: 測量科 | B9: 367 | C9: 4 | D9: 0 | E9: 4 | F9: 73 | G9: 1 | H9: 74 | I9: 50 | J9: 0 | K9: 50 | L9: 127 | M9: 99.22% | N9: 1 | O9: 0.78% | P9: 128
A10: 環境工程科 | B10: 1,796 | C10: 77 | D10: 8 | E10: 85 | F10: 253 | G10: 22 | H10: 275 | I10: 0 | J10: 0 | K10: 0 | L10: 330 | M10: 91.67% | N10: 30 | O10: 8.33% | P10: 360
A11: 都市計畫科 | B11: 761 | C11: 19 | D11: 4 | E11: 23 | F11: 115 | G11: 55 | H11: 170 | I11: 0 | J11: 0 | K11: 0 | L11: 134 | M11: 69.43% | N11: 59 | O11: 30.57% | P11: 193
A12: 機械工程科 | B12: 640 | C12: 26 | D12: 0 | E12: 26 | F12: 32 | G12: 0 | H12: 32 | I12: 0 | J12: 0 | K12: 0 | L12: 58 | M12: 100.00% | N12: 0 | O12: 0.00% | P12: 58
A13: 冷凍空調工程科 | B13: 608 | C13: 99 | D13: 0 | E13: 99 | F13: 105 | G13: 0 | H13: 105 | I13: 0 | J13: 0 | K13: 0 | L13: 204 | M13: 100.00% | N13: 0 | O13: 0.00% | P13: 204
A14: 造船工程科 | B14: 37 | C14: 9 | D14: 0 | E14: 9 | F14: 0 | G14: 0 | H14: 0 | I14: 0 | J14: 0 | K14: 0 | L14: 9 | M14: 100.00% | N14: 0 | O14: 0.00% | P14: 9
A15: 電機工程科 | B15: 2,104 | C15: 291 | D15: 0 | E15: 291 | F15: 118 | G15: 0 | H15: 118 | I15: 0 | J15: 0 | K15: 0 | L15: 409 | M15: 100.00% | N15: 0 | O15: 0.00% | P15: 409
A16: 電子工程科 | B16: 180 | C16: 0 | D16: 0 | E16: 0 | F16: 3 | G16: 0 | H16: 3 | I16: 0 | J16: 0 | K16: 0 | L16: 3 | M16: 100.00% | N16: 0 | O16: 0.00% | P16: 3
A17: 資訊科 | B17: 212 | C17: 0 | D17: 0 | E17: 0 | F17: 0 | G17: 0 | H17: 0 | I17: 0 | J17: 0 | K17: 0 | L17: 0 | M17: 0.00% | N17: 0 | O17: 0.00% | P17: 0
A18: 航空工程科 | B18: 156 | C18: 0 | D18: 0 | E18: 0 | F18: 0 | G18: 0 | H18: 0 | I18: 0 | J18: 0 | K18: 0 | L18: 0 | M18: 0.00% | N18: 0 | O18: 0.00% | P18: 0
A19: 化學工程科 | B19: 170 | C19: 2 | D19: 0 | E19: 2 | F19: 8 | G19: 0 | H19: 8 | I19: 0 | J19: 0 | K19: 0 | L19: 10 | M19: 100.00% | N19: 0 | O19: 0.00% | P19: 10
A20: 工業工程科 | B20: 89 | C20: 0 | D20: 0 | E20: 0 | F20: 2 | G20: 0 | H20: 2 | I20: 0 | J20: 0 | K20: 0 | L20: 2 | M20: 100.00% | N20: 0 | O20: 0.00% | P20: 2
A21: 工業安全科 | B21: 421 | C21: 28 | D21: 0 | E21: 28 | F21: 1 | G21: 0 | H21: 1 | I21: 0 | J21: 0 | K21: 0 | L21: 29 | M21: 100.00% | N21: 0 | O21: 0.00% | P21: 29
A22: 紡織工程科 | B22: 62 | C22: 0 | D22: 0 | E22: 0 | F22: 0 | G22: 0 | H22: 0 | I22: 0 | J22: 0 | K22: 0 | L22: 0 | M22: 0.00% | N22: 0 | O22: 0.00% | P22: 0
A23: 食品科 | B23: 671 | C23: 0 | D23: 1 | E23: 1 | F23: 0 | G23: 0 | H23: 0 | I23: 0 | J23: 0 | K23: 0 | L23: 0 | M23: 0.00% | N23: 1 | O23: 100.00% | P23: 1
A24: 冶金工程科 | B24: 31 | C24: 0 | D24: 0 | E24: 0 | F24: 0 | G24: 0 | H24: 0 | I24: 0 | J24: 0 | K24: 0 | L24: 0 | M24: 0.00% | N24: 0 | O24: 0.00% | P24: 0
A25: 農藝科 | B25: 88 | C25: 0 | D25: 0 | E25: 0 | F25: 0 | G25: 0 | H25: 0 | I25: 0 | J25: 0 | K25: 0 | L25: 0 | M25: 0.00% | N25: 0 | O25: 0.00% | P25: 0
A26: 園藝科 | B26: 374 | C26: 1 | D26: 0 | E26: 1 | F26: 0 | G26: 0 | H26: 0 | I26: 0 | J26: 0 | K26: 0 | L26: 1 | M26: 100.00% | N26: 0 | O26: 0.00% | P26: 1
A27: 林業科 | B27: 346 | C27: 5 | D27: 0 | E27: 5 | F27: 0 | G27: 0 | H27: 0 | I27: 0 | J27: 0 | K27: 0 | L27: 5 | M27: 100.00% | N27: 0 | O27: 0.00% | P27: 5
A28: 畜牧科 | B28: 149 | C28: 0 | D28: 0 | E28: 0 | F28: 0 | G28: 0 | H28: 0 | I28: 0 | J28: 0 | K28: 0 | L28: 0 | M28: 0.00% | N28: 0 | O28: 0.00% | P28: 0
A29: 漁撈科 | B29: 74 | C29: 0 | D29: 0 | E29: 0 | F29: 0 | G29: 0 | H29: 0 | I29: 0 | J29: 0 | K29: 0 | L29: 0 | M29: 0.00% | N29: 0 | O29: 0.00% | P29: 0
A30: 水產養殖科 | B30: 303 | C30: 0 | D30: 0 | E30: 0 | F30: 0 | G30: 0 | H30: 0 | I30: 0 | J30: 0 | K30: 0 | L30: 0 | M30: 0.00% | N30: 0 | O30: 0.00% | P30: 0
A31: 水土保持科 | B31: 517 | C31: 30 | D31: 2 | E31: 32 | F31: 102 | G31: 9 | H31: 111 | I31: 0 | J31: 0 | K31: 0 | L31: 132 | M31: 92.31% | N31: 11 | O31: 7.69% | P31: 143
A32: 採礦工程科 | B32: 30 | C32: 3 | D32: 0 | E32: 3 | F32: 4 | G32: 0 | H32: 4 | I32: 0 | J32: 0 | K32: 0 | L32: 7 | M32: 100.00% | N32: 0 | O32: 0.00% | P32: 7
A33: 應用地質科 | B33: 172 | C33: 13 | D33: 0 | E33: 13 | F33: 75 | G33: 1 | H33: 76 | I33: 0 | J33: 0 | K33: 0 | L33: 88 | M33: 98.88% | N33: 1 | O33: 1.12% | P33: 89
A34: 礦業安全科 | B34: 29 | C34: 1 | D34: 0 | E34: 1 | F34: 0 | G34: 0 | H34: 0 | I34: 0 | J34: 0 | K34: 0 | L34: 1 | M34: 100.00% | N34: 0 | O34: 0.00% | P34: 1
A35: 交通工程科 | B35: 227 | C35: 3 | D35: 1 | E35: 4 | F35: 44 | G35: 13 | H35: 57 | I35: 0 | J35: 0 | K35: 0 | L35: 47 | M35: 77.05% | N35: 14 | O35: 22.95% | P35: 61
A36: 職業衛生科 | B36: 0 | C36: 0 | D36: 0 | E36: 0 | F36: 0 | G36: 0 | H36: 0 | I36: 0 | J36: 0 | K36: 0 | L36: 0 | M36: 0% | N36: 0 | O36: 0% | P36: 0
A37: 資料來源：技術處

Sheet 100年
A1: 各科執業技師人數統計(資料截止日期: 100年12月31日)
P2: 表22
A3: 執業 方式 | B3: 領有技師證書人數 | C3: 單獨設立或與其他技師組織聯合技師事務所之執業人數 | F3: 組織或受聘於工程技術顧問公司之執業人數 | I3: 受聘於前款以外依法令規定必需聘用領有執業執照之技師之營利事業或機構之執業人數 | L3: 前三項合計
A4: 科別 | C4: 男 | D4: 女 | E4: 小計 | F4: 男 | G4: 女 | H4: 小計 | I4: 男 | J4: 女 | K4: 小計 | L4: 男 | M4: 比例 | N4: 女 | O4: 比例 | P4: 小計
A5: 土木工程科 | B5: 7,616 | C5: 243 | D5: 6 | E5: =SUM(C5:D5) -> 249 | F5: 867 | G5: 10 | H5: =SUM(F5:G5) -> 877 | I5: 0 | J5: 0 | K5: =SUM(I5:J5) -> 0 | L5: =SUM(C5,F5,I5) -> 1,110 | M5: =L5/P5 -> 98.58% | N5: =SUM(D5,G5,J5) -> 16 | O5: =N5/P5 -> 1.42% | P5: =SUM(L5,N5) -> 1,126
A6: 水利工程科 | B6: 1,003 | C6: 16 | D6: 0 | E6: =SUM(C6:D6) -> 16 | F6: 173 | G6: 4 | H6: =SUM(F6:G6) -> 177 | I6: 0 | J6: 0 | K6: =SUM(I6:J6) -> 0 | L6: =SUM(C6,F6,I6) -> 189 | M6: =L6/P6 -> 97.93% | N6: =SUM(D6,G6,J6) -> 4 | O6: =N6/P6 -> 2.07% | P6: =SUM(L6,N6) -> 193
A7: 結構工程科 | B7: 1,492 | C7: 214 | D7: 7 | E7: 221 | F7: 265 | G7: 10 | H7: 275 | I7: 0 | J7: 0 | K7: 0 | L7: 479 | M7: 96.57% | N7: 17 | O7: 3.43% | P7: 496
A8: 大地工程科 | B8: 720 | C8: 44 | D8: 0 | E8: 44 | F8: 219 | G8: 3 | H8: 222 | I8: 0 | J8: 0 | K8: 0 | L8: 263 | M8: 98.87% | N8: 3 | O8: 1.13% | P8: 266
A9: 測量科 | B9: 353 | C9: 4 | D9: 0 | E9: 4 | F9: 74 | G9: 1 | H9: 75 | I9: 45 | J9: 0 | K9: 45 | L9: 123 | M9: 99.19% | N9: 1 | O9: 0.81% | P9: 124
A10: 環境工程科 | B10: 1,771 | C10: 69 | D10: 6 | E10: 75 | F10: 253 | G10: 22 | H10: 275 | I10: 0 | J10: 0 | K10: 0 | L10: 322 | M10: 92.00% | N10: 28 | O10: 8.00% | P10: 350
A11: 都市計畫科 | B11: 738 | C11: 20 | D11: 5 | E11: 25 | F11: 109 | G11: 49 | H11: 158 | I11: 0 | J11: 0 | K11: 0 | L11: 129 | M11: 70.49% | N11: 54 | O11: 29.51% | P11: 183
A12: 機械工程科 | B12: 630 | C12: 23 | D12: 0 | E12: 23 | F12: 33 | G12: 0 | H12: 33 | I12: 0 | J12: 0 | K12: 0 | L12: 56 | M12: 100.00% | N12: 0 | O12: 0.00% | P12: 56
A13: 冷凍空調工程科 | B13: 588 | C13: 92 | D13: 0 | E13: 92 | F13: 102 | G13: 0 | H13: 102 | I13: 0 | J13: 0 | K13: 0 | L13: 194 | M13: 100.00% | N13: 0 | O13: 0.00% | P13: 194
A14: 造船工程科 | B14: 37 | C14: 9 | D14: 0 | E14: 9 | F14: 0 | G14: 0 | H14: 0 | I14: 0 | J14: 0 | K14: 0 | L14: 9 | M14: 100.00% | N14: 0 | O14: 0.00% | P14: 9
A15: 電機工程科 | B15: 2,079 | C15: 286 | D15: 0 | E15: 286 | F15: 117 | G15: 0 | H15: 117 | I15: 0 | J15: 0 | K15: 0 | L15: 403 | M15: 100.00% | N15: 0 | O15: 0.00% | P15: 403
A16: 電子工程科 | B16: 172 | C16: 0 | D16: 0 | E16: 0 | F16: 3 | G16: 0 | H16: 3 | I16: 0 | J16: 0 | K16: 0 | L16: 3 | M16: 100.00% | N16: 0 | O16: 0.00% | P16: 3
A17: 資訊科 | B17: 212 | C17: 0 | D17: 0 | E17: 0 | F17: 0 | G17: 0 | H17: 0 | I17: 0 | J17: 0 | K17: 0 | L17: 0 | M17: 0.00% | N17: 0 | O17: 0.00% | P17: 0
A18: 航空工程科 | B18: 156 | C18: 0 | D18: 0 | E18: 0 | F18: 0 | G18: 0 | H18: 0 | I18: 0 | J18: 0 | K18: 0 | L18: 0 | M18: 0.00% | N18: 0 | O18: 0.00% | P18: 0
A19: 化學工程科 | B19: 166 | C19: 1 | D19: 0 | E19: 1 | F19: 8 | G19: 0 | H19: 8 | I19: 0 | J19: 0 | K19: 0 | L19: 9 | M19: 100.00% | N19: 0 | O19: 0.00% | P19: 9
A20: 工業工程科 | B20: 88 | C20: 0 | D20: 0 | E20: 0 | F20: 2 | G20: 0 | H20: 2 | I20: 0 | J20: 0 | K20: 0 | L20: 2 | M20: 100.00% | N20: 0 | O20: 0.00% | P20: 2
A21: 工業安全科 | B21: 411 | C21: 24 | D21: 0 | E21: 24 | F21: 1 | G21: 0 | H21: 1 | I21: 0 | J21: 0 | K21: 0 | L21: 25 | M21: 100.00% | N21: 0 | O21: 0.00% | P21: 25
A22: 紡織工程科 | B22: 62 | C22: 0 | D22: 0 | E22: 0 | F22: 0 | G22: 0 | H22: 0 | I22: 0 | J22: 0 | K22: 0 | L22: 0 | M22: 0.00% | N22: 0 | O22: 0.00% | P22: 0
A23: 食品科 | B23: 475 | C23: 0 | D23: 1 | E23: 1 | F23: 0 | G23: 0 | H23: 0 | I23: 0 | J23: 0 | K23: 0 | L23: 0 | M23: 0.00% | N23: 1 | O23: 100.00% | P23: 1
A24: 冶金工程科 | B24: 31 | C24: 0 | D24: 0 | E24: 0 | F24: 0 | G24: 0 | H24: 0 | I24: 0 | J24: 0 | K24: 0 | L24: 0 | M24: 0.00% | N24: 0 | O24: 0.00% | P24: 0
A25: 農藝科 | B25: 86 | C25: 0 | D25: 0 | E25: 0 | F25: 0 | G25: 0 | H25: 0 | I25: 0 | J25: 0 | K25: 0 | L25: 0 | M25: 0.00% | N25: 0 | O25: 0.00% | P25: 0
A26: 園藝科 | B26: 366 | C26: 2 | D26: 0 | E26: 2 | F26: 0 | G26: 0 | H26: 0 | I26: 0 | J26: 0 | K26: 0 | L26: 2 | M26: 100.00% | N26: 0 | O26: 0.00% | P26: 2
A27: 林業科 | B27: 333 | C27: 7 | D27: 0 | E27: 7 | F27: 0 | G27: 0 | H27: 0 | I27: 0 | J27: 0 | K27: 0 | L27: 7 | M27: 100.00% | N27: 0 | O27: 0.00% | P27: 7
A28: 畜牧科 | B28: 149 | C28: 0 | D28: 0 | E28: 0 | F28: 0 | G28: 0 | H28: 0 | I28: 0 | J28: 0 | K28: 0 | L28: 0 | M28: 0.00% | N28: 0 | O28: 0.00% | P28: 0
A29: 漁撈科 | B29: 74 | C29: 0 | D29: 0 | E29: 0 | F29: 0 | G29: 0 | H29: 0 | I29: 0 | J29: 0 | K29: 0 | L29: 0 | M29: 0.00% | N29: 0 | O29: 0.00% | P29: 0
A30: 水產養殖科 | B30: 297 | C30: 0 | D30: 0 | E30: 0 | F30: 0 | G30: 0 | H30: 0 | I30: 0 | J30: 0 | K30: 0 | L30: 0 | M30: 0.00% | N30: 0 | O30: 0.00% | P30: 0
A31: 水土保持科 | B31: 479 | C31: 31 | D31: 2 | E31: 33 | F31: 99 | G31: 8 | H31: 107 | I31: 0 | J31: 0 | K31: 0 | L31: 130 | M31: 92.86% | N31: 10 | O31: 7.14% | P31: 140
A32: 採礦工程科 | B32: 30 | C32: 3 | D32: 0 | E32: 3 | F32: 4 | G32: 0 | H32: 4 | I32: 0 | J32: 0 | K32: 0 | L32: 7 | M32: 100.00% | N32: 0 | O32: 0.00% | P32: 7
A33: 應用地質科 | B33: 163 | C33: 11 | D33: 0 | E33: 11 | F33: 70 | G33: 1 | H33: 71 | I33: 0 | J33: 0 | K33: 0 | L33: 81 | M33: 98.78% | N33: 1 | O33: 1.22% | P33: 82
A34: 礦業安全科 | B34: 29 | C34: 1 | D34: 0 | E34: 1 | F34: 0 | G34: 0 | H34: 0 | I34: 0 | J34: 0 | K34: 0 | L34: 1 | M34: 100.00% | N34: 0 | O34: 0.00% | P34: 1
A35: 交通工程科 | B35: 219 | C35: 3 | D35: 1 | E35: 4 | F35: 40 | G35: 11 | H35: 51 | I35: 0 | J35: 0 | K35: 0 | L35: 43 | M35: 78.18% | N35: 12 | O35: 21.82% | P35: 55
A36: 職業衛生科 | B36: 0 | C36: 0 | D36: 0 | E36: 0 | F36: 0 | G36: 0 | H36: 0 | I36: 0 | J36: 0 | K36: 0 | L36: 0 | M36: 0.00% | N36: 0 | O36: 0.00% | P36: 0
A37: 資料來源：技術處

Sheet 99年
A1: 各科執業技師人數統計(資料截止日期: 99年12月31日)
P2: 表22
A3: 執業 方式 | B3: 領有技師證書人數 | C3: 單獨設立或與其他技師組織聯合技師事務所之執業人數 | F3: 組織或受聘於工程技術顧問公司之執業人數 | I3: 受聘於前款以外依法令規定必需聘用領有執業執照之技師之營利事業或機構之執業人數 | L3: 前三項合計
A4: 科別 | C4: 男 | D4: 女 | E4: 小計 | F4: 男 | G4: 女 | H4: 小計 | I4: 男 | J4: 女 | K4: 小計 | L4: 男 | M4: 比例 | N4: 女 | O4: 比例 | P4: 小計
A5: 土木工程科 | B5: 7,467 | C5: 247 | D5: 7 | E5: =SUM(C5:D5) -> 254 | F5: 873 | G5: 9 | H5: =SUM(F5:G5) -> 882 | I5: 0 | J5: 0 | K5: =SUM(I5:J5) -> 0 | L5: =SUM(C5,F5,I5) -> 1,120 | M5: =L5/P5 -> 98.59% | N5: =SUM(D5,G5,J5) -> 16 | O5: =N5/P5 -> 1.41% | P5: =SUM(L5,N5) -> 1,136
A6: 水利工程科 | B6: 963 | C6: 18 | D6: 0 | E6: =SUM(C6:D6) -> 18 | F6: 165 | G6: 4 | H6: =SUM(F6:G6) -> 169 | I6: 0 | J6: 0 | K6: =SUM(I6:J6) -> 0 | L6: =SUM(C6,F6,I6) -> 183 | M6: =L6/P6 -> 97.86% | N6: =SUM(D6,G6,J6) -> 4 | O6: =N6/P6 -> 2.14% | P6: =SUM(L6,N6) -> 187
A7: 結構工程科 | B7: 1,465 | C7: 217 | D7: 7 | E7: 224 | F7: 254 | G7: 9 | H7: 263 | I7: 0 | J7: 0 | K7: 0 | L7: 471 | M7: 96.71% | N7: 16 | O7: 3.29% | P7: 487
A8: 大地工程科 | B8: 708 | C8: 44 | D8: 0 | E8: 44 | F8: 210 | G8: 3 | H8: 213 | I8: 0 | J8: 0 | K8: 0 | L8: 254 | M8: 98.83% | N8: 3 | O8: 1.17% | P8: 257
A9: 測量科 | B9: 337 | C9: 4 | D9: 0 | E9: 4 | F9: 78 | G9: 1 | H9: 79 | I9: 36 | J9: 0 | K9: 36 | L9: 118 | M9: 99.16% | N9: 1 | O9: 0.84% | P9: 119
A10: 環境工程科 | B10: 1,754 | C10: 62 | D10: 6 | E10: 68 | F10: 247 | G10: 23 | H10: 270 | I10: 0 | J10: 0 | K10: 0 | L10: 309 | M10: 91.42% | N10: 29 | O10: 8.58% | P10: 338
A11: 都市計畫科 | B11: 708 | C11: 20 | D11: 5 | E11: 25 | F11: 108 | G11: 48 | H11: 156 | I11: 0 | J11: 0 | K11: 0 | L11: 128 | M11: 70.72% | N11: 53 | O11: 29.28% | P11: 181
A12: 機械工程科 | B12: 623 | C12: 23 | D12: 0 | E12: 23 | F12: 34 | G12: 0 | H12: 34 | I12: 0 | J12: 0 | K12: 0 | L12: 57 | M12: 100.00% | N12: 0 | O12: 0.00% | P12: 57
A13: 冷凍空調工程科 | B13: 576 | C13: 89 | D13: 0 | E13: 89 | F13: 97 | G13: 0 | H13: 97 | I13: 0 | J13: 0 | K13: 0 | L13: 186 | M13: 100.00% | N13: 0 | O13: 0.00% | P13: 186
A14: 造船工程科 | B14: 37 | C14: 9 | D14: 0 | E14: 9 | F14: 0 | G14: 0 | H14: 0 | I14: 0 | J14: 0 | K14: 0 | L14: 9 | M14: 100.00% | N14: 0 | O14: 0.00% | P14: 9
A15: 電機工程科 | B15: 2,055 | C15: 284 | D15: 0 | E15: 284 | F15: 117 | G15: 0 | H15: 117 | I15: 0 | J15: 0 | K15: 0 | L15: 401 | M15: 100.00% | N15: 0 | O15: 0.00% | P15: 401
A16: 電子工程科 | B16: 163 | C16: 0 | D16: 0 | E16: 0 | F16: 3 | G16: 0 | H16: 3 | I16: 0 | J16: 0 | K16: 0 | L16: 3 | M16: 100.00% | N16: 0 | O16: 0.00% | P16: 3
A17: 資訊科 | B17: 210 | C17: 0 | D17: 0 | E17: 0 | F17: 0 | G17: 0 | H17: 0 | I17: 0 | J17: 0 | K17: 0 | L17: 0 | M17: 0.00% | N17: 0 | O17: 0.00% | P17: 0
A18: 航空工程科 | B18: 156 | C18: 0 | D18: 0 | E18: 0 | F18: 0 | G18: 0 | H18: 0 | I18: 0 | J18: 0 | K18: 0 | L18: 0 | M18: 0.00% | N18: 0 | O18: 0.00% | P18: 0
A19: 化學工程科 | B19: 166 | C19: 1 | D19: 0 | E19: 1 | F19: 7 | G19: 0 | H19: 7 | I19: 0 | J19: 0 | K19: 0 | L19: 8 | M19: 100.00% | N19: 0 | O19: 0.00% | P19: 8
A20: 工業工程科 | B20: 87 | C20: 0 | D20: 0 | E20: 0 | F20: 2 | G20: 0 | H20: 2 | I20: 0 | J20: 0 | K20: 0 | L20: 2 | M20: 100.00% | N20: 0 | O20: 0.00% | P20: 2
A21: 工業安全科 | B21: 406 | C21: 21 | D21: 0 | E21: 21 | F21: 2 | G21: 0 | H21: 2 | I21: 0 | J21: 0 | K21: 0 | L21: 23 | M21: 100.00% | N21: 0 | O21: 0.00% | P21: 23
A22: 紡織工程科 | B22: 62 | C22: 0 | D22: 0 | E22: 0 | F22: 0 | G22: 0 | H22: 0 | I22: 0 | J22: 0 | K22: 0 | L22: 0 | M22: 0.00% | N22: 0 | O22: 0.00% | P22: 0
A23: 食品科 | B23: 392 | C23: 0 | D23: 1 | E23: 1 | F23: 0 | G23: 0 | H23: 0 | I23: 0 | J23: 0 | K23: 0 | L23: 0 | M23: 0.00% | N23: 1 | O23: 100.00% | P23: 1
A24: 冶金工程科 | B24: 31 | C24: 1 | D24: 0 | E24: 1 | F24: 0 | G24: 0 | H24: 0 | I24: 0 | J24: 0 | K24: 0 | L24: 1 | M24: 100.00% | N24: 0 | O24: 0.00% | P24: 1
A25: 農藝科 | B25: 81 | C25: 0 | D25: 0 | E25: 0 | F25: 0 | G25: 0 | H25: 0 | I25: 0 | J25: 0 | K25: 0 | L25: 0 | M25: 0.00% | N25: 0 | O25: 0.00% | P25: 0
A26: 園藝科 | B26: 360 | C26: 2 | D26: 0 | E26: 2 | F26: 0 | G26: 0 | H26: 0 | I26: 0 | J26: 0 | K26: 0 | L26: 2 | M26: 100.00% | N26: 0 | O26: 0.00% | P26: 2
A27: 林業科 | B27: 318 | C27: 8 | D27: 0 | E27: 8 | F27: 0 | G27: 0 | H27: 0 | I27: 0 | J27: 0 | K27: 0 | L27: 8 | M27: 100.00% | N27: 0 | O27: 0.00% | P27: 8
A28: 畜牧科 | B28: 149 | C28: 0 | D28: 0 | E28: 0 | F28: 0 | G28: 0 | H28: 0 | I28: 0 | J28: 0 | K28: 0 | L28: 0 | M28: 0.00% | N28: 0 | O28: 0.00% | P28: 0
A29: 漁撈科 | B29: 72 | C29: 0 | D29: 0 | E29: 0 | F29: 0 | G29: 0 | H29: 0 | I29: 0 | J29: 0 | K29: 0 | L29: 0 | M29: 0.00% | N29: 0 | O29: 0.00% | P29: 0
A30: 水產養殖科 | B30: 293 | C30: 0 | D30: 0 | E30: 0 | F30: 0 | G30: 0 | H30: 0 | I30: 0 | J30: 0 | K30: 0 | L30: 0 | M30: 0.00% | N30: 0 | O30: 0.00% | P30: 0
A31: 水土保持科 | B31: 455 | C31: 31 | D31: 2 | E31: 33 | F31: 92 | G31: 7 | H31: 99 | I31: 0 | J31: 0 | K31: 0 | L31: 123 | M31: 93.18% | N31: 9 | O31: 6.82% | P31: 132
A32: 採礦工程科 | B32: 30 | C32: 3 | D32: 0 | E32: 3 | F32: 4 | G32: 0 | H32: 4 | I32: 0 | J32: 0 | K32: 0 | L32: 7 | M32: 100.00% | N32: 0 | O32: 0.00% | P32: 7
A33: 應用地質科 | B33: 159 | C33: 12 | D33: 0 | E33: 12 | F33: 62 | G33: 1 | H33: 63 | I33: 0 | J33: 0 | K33: 0 | L33: 74 | M33: 98.67% | N33: 1 | O33: 1.33% | P33: 75
A34: 礦業安全科 | B34: 28 | C34: 1 | D34: 0 | E34: 1 | F34: 0 | G34: 0 | H34: 0 | I34: 0 | J34: 0 | K34: 0 | L34: 1 | M34: 100.00% | N34: 0 | O34: 0.00% | P34: 1
A35: 交通工程科 | B35: 210 | C35: 2 | D35: 1 | E35: 3 | F35: 37 | G35: 11 | H35: 48 | I35: 0 | J35: 0 | K35: 0 | L35: 39 | M35: 76.47% | N35: 12 | O35: 23.53% | P35: 51
A36: 職業衛生科 | B36: 0 | C36: 0 | D36: 0 | E36: 0 | F36: 0 | G36: 0 | H36: 0 | I36: 0 | J36: 0 | K36: 0 | L36: 0 | M36: 0.00% | N36: 0 | O36: 0.00% | P36: 0
A37: 資料來源：技術處
